Workbook

Sheet Instructions
A1: INSTRUCTIONS
A2: Copyright © 2022 Wunsupona. This workbook is not for resale or redistribution unless explicitly approved by Wunsupona.
A4: 1. | B4: Savings Goals tab.
B5: a. | C5: Enter Annual Household Income Estimate as well as Annual Goal Amounts. Update Savings Descriptions as needed.
B6: b. | C6: Check that your total savings percentages feel reasonable.
B7: c. | C7: This does not include 401k contributions and employer matching.
A8: 2. | B8: Entering Descriptions and Budget Amounts on 'Monthly Budget Tabs ('JAN', 'FEB', 'MAR', etc.)
B9: a. | C9: Savings Goal Amounts Transfer to the bottom of the January tab and can be changed on the monthly tab as needed.
C10: Each month pulls the savings goal amounts from the prior month (i.e. the MAR savings goal amounts will pull from the FEB savings goals amounts.
B11: b. | C11: Add income descriptions and fill in the "budget" column for each.
B12: c. | C12: Enter fixed expense descriptions and fill in the budget column for each.
C13: Fixed expenses are the ones that you know ahead of time and would be difficult to change month-to-month. Descriptions and budgeted amounts also auto-fill in the next month's budget.
B14: e. | C14: After entering all fixed expenses, the "Money Left to Spend This Month" row gives you your total remaining monthly spending budget.
B15: f. | C15: Adjust 'Savings Goals' as needed. and then begin entering variable expense budget amounts. Continue to adjust 'Savings Goals' tab and variable expense budget amounts as needed.
B16: g. | C16: Enter variable expense descriptions and fill in the budget column for each.
C17: These are expenses you can more easily change month-to-month. As you add budgeted variable expenses, you will see the "Money Left to Spend This Month" get smaller.
A18: 3. | B18: Entering Actual Amounts on Monthly Budget Tabs (i.e. 'JAN, 'FEB', 'MAR', etc.)
B19: a. | C19: Enter actual income, expense, and savings amounts.
B20: b. | C20: Compare actual to budgeted amounts and adjust behavior/spending as needed.
B21: c. | C21: You may also need to adjust your savings goals and budget amounts based on your actual income and spending habits.
C22: You do not need a perfect budget each month. This is a process that will take time and will require adjustments throughout the year.
A23: 4. | B23: Monitoring
B24: a. | C24: Each month review the projected rows at the bottom of each monthly budget tab (i.e. 'JAN', 'FEB', MAR', etc.).
B25: b. | C25: If the 'Money Left to Spend This Month' amount is positive, you successfully budgeted, saved, and spent.
B26: c. | C26: If the "Money Left to Spend This Month" amount is negative, you spent more than your income for the month.
C27: Make sure your 'Extra Money Saved So Far This year' amount, which shows how you've done during the year compared to your budget amounts, is still a positive number.
A28: 5. | B28: Continuous Budgeting Efforts
B29: a. | C29: You can tweak this tool to better align with how you prefer to budget and record actual amounts each month.
B30: b. | C30: Feel free to increase or decrease the level of detail.
B31: c. | C31: It may be easier to only budget and enter actual amounts at the Category level instead of entering specific lines descriptions and amounts each month.
B32: d. | C32: Do what works for you.
C33: You may benefit from more detail in the beginning iin order to gain an understanding of where your dollars are being spent.
C34: You can then adjust to a less detailed budgeting plan once that understanding is reached.
A36: 6 | B36: Locked Cells
B37: a. | C37: To UnProtect a SHEET in effort to modify a formula, go to the Review section on the top button bar and click "UnProtect Sheet".
B38: b. | C38: Once formula modifcations are completed, be sure to click "Protect Sheet".
B39: c. | C39: NOTE: Each SHEET is Protected individually, therefore you have to Enable/Disable Protection on each sheet requiring modification.

Sheet Savings Goals
A1: ANNUAL HOUSEHOLD INCOME (ESTIMATE): | B1: 100000
E2: Goal Amount
B3: CATEGORY | C3: DESCRIPTION | D3: TYPE | E3: Annual | F3: Monthly | G3: PERCENT
A4: GOALS | B4: Savings | C4: Emergency Funds Safety Net (High Interest Online Savings Acct) | D4: Fixed | E4: 1440 | F4: =E4/12 -> 120 | G4: =E4/$B$1 -> 0.0144
C5: Additional Retirement Savings | D5: Variable | E5: 0 | F5: 0 | G5: 0
C6: Short-term (Family visits, credit cards, etc.) | D6: Variable | E6: 0 | F6: 0 | G6: 0
C7: Vacations | D7: Variable | E7: 0 | F7: 0 | G7: 0
C8: Long-term (House, Moving Exp, Furniture, Food Staples, etc.) | D8: Variable | E8: 0 | F8: 0 | G8: 0
C9: Long-term Car | D9: Variable | E9: 0 | F9: 0 | G9: 0
D10: Variable | E10: 0 | F10: =E10/12 -> 0 | G10: =E10/$B$1 -> 0
D11: Variable | E11: 0 | F11: =E11/12 -> 0 | G11: =E11/$B$1 -> 0
B12: TOTAL SAVINGS | E12: =SUM(E4:E9) -> 1440 | F12: =SUM(F4:F9) -> 120 | G12: =SUM(G4:G9) -> 0.0144
C15: TEST DATA
C16: PAYCHECK DEDUCTIONS (Every 2 Weeks)
C17: Non-Tax Related
C18: Pension Contribution | D18: 300
C19: Pre-Tax Dental | D19: 20
C20: Pre-Tax Health | D20: 230
C21: Deferred Comp | D21: 300
C22: Contributory Insurance | D22: 20
C23: Total Non-Tax Related (Itemized on monthly tabs) | D23: =SUM(D18:D22) -> 870
C27: Tax, Medicare, Unemployment, etc
C28: Federal Income Tax | D28: 450
C29: FICA | D29: 230
C30: NY Income Tax | D30: 125
C31: Medicare | D31: 54
C32: Unemployment Ins | D32: 17
C33: Total | D33: =SUM(D28:D32) -> 876
C34: NY Gross Wages (Every 2-Weeks) | D34: 4000
C35: Net After Tax (Above itemization-NY Gross) | D35: =SUM(D34-D33) -> 3124
C36: Calculate Monthly (NetAfterTax * 26wks / 12months) | D36: =SUM(D35*26)/12 -> 6768.666667

Sheet Subscriptions
A1: Subscription Services | B1: Monthly Amount
A2: MS Office | B2: 10
A3: Streaming At It's Best | B3: 55
A4: Parmount+ | B4: 0
A10: TOTAL | B10: =SUM(B2:B9) -> 65

Sheet JAN
B2: MONTHLY BUDGET
C4: CATEGORY | D4: DESCRIPTION | E4: TYPE | F4: ACTUAL | G4: BUDGET | H4: OVER / (UNDER)
B5: INCOME | C5: Paycheck (Every 2-weeks, After-Tax) | D5: New Jersey (See Savings Goal tab for details) | E5: Fixed | F5: =IncomeNet -> 6768.666667 | G5: =IncomeNet -> 6768.666667 | H5: =G5-F5 -> 0
D6: Resilent Minds | E6: Variable | G6: 0 | H6: =G6-F6 -> 0
G7: 0 | H7: =G7-F7 -> 0
G8: 0 | H8: 0
G9: 0 | H9: =G9-F9 -> 0
D10: Subtotal | F10: =SUM(F5:F9) -> 6768.666667 | G10: =SUM(G5:G9) -> 6768.666667 | H10: =SUM(H5:H9) -> 0
C11: Additional Income | D11: Bonuses, Tips, Commissions, Miscellaneous Sales, Etc. | E11: Variable | G11: 0 | H11: =G11-F11 -> 0
D12: Savings Interest | E12: Variable | G12: 0 | H12: =G12-F12 -> 0
D13: Credit Card Cash Back | E13: Variable | G13: 0 | H13: =G13-F13 -> 0
D14: Credit Card Cash Back | E14: Variable | G14: 0 | H14: =G14-F14 -> 0
D15: Credit Card Cash Back | E15: Variable | G15: 0 | H15: =G15-F15 -> 0
E16: Variable | G16: 0 | H16: 0
E17: Variable | G17: 0 | H17: 0
D18: Subtotal | F18: =SUM(F11:F13) -> 0 | G18: =SUM(G11:G13) -> 0 | H18: =SUM(H11:H13) -> 0
C19: TOTAL INCOME | F19: =SUM(F18,F10) -> 6768.666667 | G19: =SUM(G18,G10) -> 6768.666667 | H19: =SUM(H18,H10) -> 0
B21: EXPENSES | C21: Home | D21: Rent/Mortgage | E21: Fixed | G21: 0 | H21: =G21-F21 -> 0
D22: Home Insurance | E22: Fixed | G22: 0 | H22: 0
D23: HOA | E23: Fixed | G23: 0 | H23: 0
D24: Electric | E24: Variable | G24: 0 | H24: 0
D25: Gas | E25: Variable | G25: 0 | H25: 0
D26: Water & Garbage | E26: Variable | G26: 0 | H26: 0
D27: Internet | E27: Variable | G27: 0 | H27: 0
D28: Personal Property or Other Taxes | E28: Variable | G28: 0 | H28: 0
D29: Phone | E29: Fixed | G29: 0 | H29: 0
D30: Home Furnishings, Repairs | E30: Variable | G30: 0 | H30: 0
E31: Variable | G31: 0 | H31: =G31-F31 -> 0
E32: Variable | G32: 0 | H32: 0
D33: Subtotal | F33: =SUM(F21:F30) -> 0 | G33: =SUM(G21:G30) -> 0 | H33: =SUM(H21:H30) -> 0
C34: Transportation | D34: Car Insurance | E34: Fixed | G34: 0 | H34: =G34-F34 -> 0
D35: Car Oil Changes | E35: Variable | G35: 0 | H35: 0
D36: Car Tires | E36: Variable | G36: 0 | H36: 0
D37: Car Repairs | E37: Variable | G37: 0 | H37: 0
D38: Auto Gas | E38: Variable | G38: 0 | H38: 0
D39: Public Transit / Ride-Share Programs | E39: Fixed | G39: 0 | H39: 0
E40: Fixed | G40: 0 | H40: =G40-F40 -> 0
E41: Fixed | G41: 0 | H41: 0
D42: Subtotal | F42: =SUM(F34:F41) -> 0 | G42: =SUM(G34:G41) -> 0 | H42: =SUM(H34:H41) -> 0
C43: Other Debt Payments | D43: Car Loan | E43: Fixed | G43: 0 | H43: =G43-F43 -> 0
D44: Credit Card #1 | E44: Variable | G44: 0 | H44: 0
D45: Credit Card #2 | E45: Variable | G45: 0 | H45: 0
D46: Credit Card #3 | E46: Variable | G46: 0 | H46: 0
E47: Fixed | H47: =G47-F47 -> 0
E48: Fixed | G48: 0 | H48: 0
E49: Fixed | G49: 0 | H49: 0
D50: Subtotal | F50: =SUM(F43:F49) -> 0 | G50: =SUM(G43:G49) -> 0 | H50: =SUM(H43:H49) -> 0
C51: Family Care | D51: Medical Insurance | E51: Variable | G51: 0 | H51: =G51-F51 -> 0
D52: Medical CoPays | E52: Variable | G52: 0 | H52: 0
D53: Medical Out-of-Pocket | E53: Variable | G53: 0 | H53: 0
D54: Dental | E54: Variable | G54: 0 | H54: 0
D55: Groceries | E55: Variable | G55: 0 | H55: 0
D56: Prescriptions | E56: Variable | G56: 0 | H56: 0
D57: Vitamins and Gummies | E57: Variable | G57: 0 | H57: 0
D58: Clothing, shoes, hats, etc | E58: Variable | G58: 0 | H58: 0
D59: Personal Care (Haircuts, Pedicures, Etc.) | E59: Variable | G59: 0 | H59: =G59-F59 -> 0
D60: Gym | E60: Variable | G60: 0 | H60: =G60-F60 -> 0
D61: Pets (Food, Vet, Boarding, Etc.) | E61: Variable | G61: 0 | H61: 0
D62: Alchohol | E62: Variable | G62: 0 | H62: 0
E63: Variable | G63: 0 | H63: =G63-F63 -> 0
D64: Subtotal | F64: =SUM(F51:F61) -> 0 | G64: =SUM(G51:G61) -> 0 | H64: =SUM(H51:H61) -> 0
C65: Entertainment | D65: Restaurants, Bars, Etc. | E65: Variable | G65: 0 | H65: =G65-F65 -> 0
D66: Travel (Personal) | E66: Variable | G66: 0 | H66: 0
D67: Hobbies, Other Entertainment | E67: Variable | G67: 0 | H67: 0
D68: Work trips food & drink | E68: Variable | G68: 0 | H68: 0
E69: Variable | G69: 0 | H69: =G69-F69 -> 0
E70: Variable | G70: 0 | H70: 0
D71: Subtotal | F71: =SUM(F65:F70) -> 0 | G71: =SUM(G65:G70) -> 0 | H71: =SUM(H65:H70) -> 0
C72: Miscellaneous | D72: Gifts - Morgan | E72: Variable | H72: =G72-F72 -> 0
D73: Gifts - Others | E73: Variable | G73: 0 | H73: 0
D74: Donations | E74: Variable | G74: =Subscriptions!B10 -> 65 | H74: 65
D75: Tips, Uber, DoorDash, etc | E75: Variable | G75: 0 | H75: 0
D76: Subscriptions (MS Office, Streaming Services, etc.) | E76: Variable | G76: 0 | H76: 0
D77: Cash Expenses | E77: Variable | G77: 0 | H77: 0
D78: Pension Contribution | E78: Variable | G78: 0 | H78: 0
D79: Contributory Insurance | E79: Variable | G79: 0 | H79: =G79-F79 -> 0
D80: Other Miscellaneous | E80: Variable | G80: 0 | H80: 0
E81: Variable | G81: 0 | H81: 0
E82: Variable | G82: 0 | H82: 0
D83: Subtotal | F83: =SUM(F72:F76) -> 0 | G83: =SUM(G72:G76) -> 65 | H83: =SUM(H72:H76) -> 65
C84: TOTAL EXPENSES | F84: =SUM(F83,F71,F64,F50,F42,F33) -> 0 | G84: =SUM(G83,G71,G64,G50,G42,G33) -> 65 | H84: =SUM(H83,H71,H64,H50,H42,H33) -> 65
B86: GOALS | C86: Savings | D86: ='Savings Goals'!C4 -> Emergency Funds Safety Net (High Interest Online Savings Acct) | E86: ='Savings Goals'!D4 -> Fixed | G86: ='Savings Goals'!F4 -> 120 | H86: =G86-F86 -> 120
D87: ='Savings Goals'!C5 -> Additional Retirement Savings | E87: ='Savings Goals'!D5 -> Variable | G87: ='Savings Goals'!F5 -> 0 | H87: 0
D88: ='Savings Goals'!C6 -> Short-term (Family visits, credit cards, etc.) | E88: ='Savings Goals'!D6 -> Variable | G88: ='Savings Goals'!F6 -> 0 | H88: 0
D89: ='Savings Goals'!C7 -> Vacations | E89: ='Savings Goals'!D7 -> Variable | G89: ='Savings Goals'!F7 -> 0 | H89: 0
D90: ='Savings Goals'!C8 -> Long-term (House, Moving Exp, Furniture, Food Staples, etc.) | E90: ='Savings Goals'!D8 -> Variable | G90: ='Savings Goals'!F8 -> 0 | H90: 0
D91: ='Savings Goals'!C9 -> Long-term Car | E91: ='Savings Goals'!D9 -> Variable | G91: ='Savings Goals'!F9 -> 0 | H91: =G91-F91 -> 0
D92: ='Savings Goals'!C10 -> 0 | E92: ='Savings Goals'!D10 -> Variable | G92: ='Savings Goals'!F10 -> 0 | H92: 0
D93: ='Savings Goals'!C11 -> 0 | E93: ='Savings Goals'!D11 -> Variable | G93: ='Savings Goals'!F11 -> 0 | H93: 0
C94: TOTAL SAVINGS | F94: =SUM(F86:F89) -> 0 | G94: =SUM(G86:G91) -> 120 | H94: =SUM(H86:H91) -> 120
B96: PROJECTED | C96: MONEY LEFT TO SPEND THIS MONTH | F96: =F19-F84-F94 -> 6768.666667 | G96: =G19-G84-G94 -> 6583.666667 | H96: =F96-G96 -> 185
C97: EXTRA MONEY SAVED SO FAR THIS YEAR | F97: =F96 -> 6768.666667 | G97: =G96 -> 6583.666667 | H97: =F97-G97 -> 185

Sheet FEB
B2: MONTHLY BUDGET
C4: CATEGORY | D4: DESCRIPTION | E4: TYPE | F4: ACTUAL | G4: BUDGET | H4: OVER / (UNDER)
B5: INCOME | C5: =JAN!C5 -> Paycheck (Every 2-weeks, After-Tax) | D5: =JAN!D5 -> New Jersey (See Savings Goal tab for details) | E5: Fixed | G5: =JAN!G5 -> 6768.666667 | H5: =G5-F5 -> 6768.666667
D6: =JAN!D6 -> Resilent Minds | E6: Variable | G6: =JAN!G6 -> 0 | H6: =G6-F6 -> 0
D7: =JAN!D7 -> 0 | E7: =JAN!E7 -> 0 | G7: =JAN!G7 -> 0 | H7: =G7-F7 -> 0
D8: =JAN!D8 -> 0 | E8: =JAN!E8 -> 0 | G8: =JAN!G8 -> 0 | H8: 0
D9: =JAN!D9 -> 0 | E9: =JAN!E9 -> 0 | G9: =JAN!G9 -> 0 | H9: =G9-F9 -> 0
D10: Subtotal | F10: =SUM(F5:F9) -> 0 | G10: =SUM(G5:G9) -> 6768.666667 | H10: =SUM(H5:H9) -> 6768.666667
C11: =JAN!C11 -> Additional Income | D11: =JAN!D11 -> Bonuses, Tips, Commissions, Miscellaneous Sales, Etc. | E11: Variable | G11: =JAN!G11 -> 0 | H11: =G11-F11 -> 0
D12: =JAN!D12 -> Savings Interest | E12: Fixed | G12: =JAN!G12 -> 0 | H12: =G12-F12 -> 0
D13: =JAN!D13 -> Credit Card Cash Back | E13: =JAN!E13 -> Variable | G13: =JAN!G13 -> 0 | H13: =G13-F13 -> 0
D14: =JAN!D14 -> Credit Card Cash Back | E14: Variable | G14: =JAN!G14 -> 0 | H14: =G14-F14 -> 0
D15: =JAN!D15 -> Credit Card Cash Back | E15: =JAN!E15 -> Variable | G15: =JAN!G15 -> 0 | H15: 0
D16: =JAN!D16 -> 0 | E16: =JAN!E16 -> Variable | G16: =JAN!G16 -> 0 | H16: 0
D17: =JAN!D17 -> 0 | E17: Variable | G17: =JAN!G17 -> 0 | H17: 0
D18: Subtotal | F18: =SUM(F11:F13) -> 0 | G18: =SUM(G11:G13) -> 0 | H18: =SUM(H11:H13) -> 0
C19: TOTAL INCOME | F19: =SUM(F18,F10) -> 0 | G19: =SUM(G18,G10) -> 6768.666667 | H19: =SUM(H18,H10) -> 6768.666667
B21: EXPENSES | C21: =JAN!C21 -> Home | D21: =JAN!D21 -> Rent/Mortgage | E21: Fixed | G21: =JAN!G21 -> 0 | H21: =G21-F21 -> 0
D22: =JAN!D22 -> Home Insurance | E22: =JAN!E22 -> Fixed | G22: =JAN!G22 -> 0 | H22: 0
D23: =JAN!D23 -> HOA | E23: =JAN!E23 -> Fixed | G23: =JAN!G23 -> 0 | H23: 0
D24: =JAN!D24 -> Electric | E24: =JAN!E24 -> Variable | G24: =JAN!G24 -> 0 | H24: =G24-F24 -> 0
D25: =JAN!D25 -> Gas | E25: Fixed | G25: =JAN!G25 -> 0 | H25: 0
D26: =JAN!D26 -> Water & Garbage | E26: =JAN!E26 -> Variable | G26: =JAN!G26 -> 0 | H26: 0
D27: =JAN!D27 -> Internet | E27: =JAN!E27 -> Variable | G27: =JAN!G27 -> 0 | H27: 0
D28: =JAN!D28 -> Personal Property or Other Taxes | E28: =JAN!E28 -> Variable | G28: =JAN!G28 -> 0 | H28: =G28-F28 -> 0
D29: =JAN!D29 -> Phone | E29: Fixed | G29: =JAN!G29 -> 0 | H29: 0
D30: =JAN!D30 -> Home Furnishings, Repairs | E30: =JAN!E30 -> Variable | G30: =JAN!G30 -> 0 | H30: 0
D31: =JAN!D31 -> 0 | E31: =JAN!E31 -> Variable | G31: =JAN!G31 -> 0 | H31: 0
D32: =JAN!D32 -> 0 | E32: =JAN!E32 -> Variable | G32: =JAN!G32 -> 0 | H32: 0
D33: Subtotal | F33: =SUM(F21:F30) -> 0 | G33: =SUM(G21:G30) -> 0 | H33: =SUM(H21:H30) -> 0
C34: =JAN!C34 -> Transportation | D34: =JAN!D34 -> Car Insurance | E34: =JAN!E34 -> Fixed | G34: =JAN!G34 -> 0 | H34: =G34-F34 -> 0
D35: =JAN!D35 -> Car Oil Changes | E35: =JAN!E35 -> Variable | G35: =JAN!G35 -> 0 | H35: 0
D36: =JAN!D36 -> Car Tires | E36: =JAN!E36 -> Variable | G36: =JAN!G36 -> 0 | H36: 0
D37: =JAN!D37 -> Car Repairs | E37: =JAN!E37 -> Variable | G37: =JAN!G37 -> 0 | H37: 0
D38: =JAN!D38 -> Auto Gas | E38: =JAN!E38 -> Variable | G38: =JAN!G38 -> 0 | H38: =G38-F38 -> 0
D39: =JAN!D39 -> Public Transit / Ride-Share Programs | E39: =JAN!E39 -> Fixed | G39: =JAN!G39 -> 0 | H39: 0
D40: =JAN!D40 -> 0 | E40: =JAN!E40 -> Fixed | G40: =JAN!G40 -> 0 | H40: 0
D41: =JAN!D41 -> 0 | E41: =JAN!E41 -> Fixed | G41: =JAN!G41 -> 0 | H41: 0
D42: Subtotal | F42: =SUM(F34:F40) -> 0 | G42: =SUM(G34:G40) -> 0 | H42: =SUM(H34:H40) -> 0
C43: =JAN!C43 -> Other Debt Payments | D43: =JAN!D43 -> Car Loan | E43: =JAN!E43 -> Fixed | G43: =JAN!G43 -> 0 | H43: =G43-F43 -> 0
D44: =JAN!D44 -> Credit Card #1 | E44: =JAN!E44 -> Variable | G44: =JAN!G44 -> 0 | H44: 0
D45: =JAN!D45 -> Credit Card #2 | E45: =JAN!E45 -> Variable | G45: =JAN!G45 -> 0 | H45: 0
D46: =JAN!D46 -> Credit Card #3 | E46: =JAN!E46 -> Variable | G46: =JAN!G46 -> 0 | H46: 0
D47: =JAN!D47 -> 0 | E47: =JAN!E47 -> Fixed | G47: =JAN!G47 -> 0 | H47: =G47-F47 -> 0
D48: =JAN!D48 -> 0 | E48: =JAN!E48 -> Fixed | G48: =JAN!G48 -> 0 | H48: 0
D49: =JAN!D49 -> 0 | E49: =JAN!E49 -> Fixed | G49: =JAN!G49 -> 0 | H49: 0
D50: Subtotal | F50: =SUM(F43:F47) -> 0 | G50: =SUM(G43:G47) -> 0 | H50: =SUM(H43:H47) -> 0
C51: =JAN!C51 -> Family Care | D51: =JAN!D51 -> Medical Insurance | E51: Variable | G51: =JAN!G51 -> 0 | H51: =G51-F51 -> 0
D52: =JAN!D52 -> Medical CoPays | E52: =JAN!E52 -> Variable | G52: =JAN!G52 -> 0 | H52: 0
D53: =JAN!D53 -> Medical Out-of-Pocket | E53: =JAN!E53 -> Variable | G53: =JAN!G53 -> 0 | H53: 0
D54: =JAN!D54 -> Dental | E54: =JAN!E54 -> Variable | G54: =JAN!G54 -> 0 | H54: 0
D55: =JAN!D55 -> Groceries | E55: =JAN!E55 -> Variable | G55: =JAN!G55 -> 0 | H55: 0
D56: =JAN!D56 -> Prescriptions | E56: Variable | G56: =JAN!G56 -> 0 | H56: =G56-F56 -> 0
D57: =JAN!D57 -> Vitamins and Gummies | E57: =JAN!E57 -> Variable | G57: =JAN!G57 -> 0 | H57: 0
D58: =JAN!D58 -> Clothing, shoes, hats, etc | E58: =JAN!E58 -> Variable | G58: =JAN!G58 -> 0 | H58: 0
D59: =JAN!D59 -> Personal Care (Haircuts, Pedicures, Etc.) | E59: =JAN!E59 -> Variable | G59: =JAN!G59 -> 0 | H59: 0
D60: =JAN!D60 -> Gym | E60: =JAN!E60 -> Variable | G60: =JAN!G60 -> 0 | H60: 0
D61: =JAN!D61 -> Pets (Food, Vet, Boarding, Etc.) | E61: Variable | G61: =JAN!G61 -> 0 | H61: 0
D62: =JAN!D62 -> Alchohol | E62: =JAN!E62 -> Variable | G62: =JAN!G62 -> 0 | H62: 0
D63: =JAN!D63 -> 0 | E63: =JAN!E63 -> Variable | G63: =JAN!G63 -> 0 | H63: 0
D64: Subtotal | F64: =SUM(F51:F59) -> 0 | G64: =SUM(G51:G59) -> 0 | H64: =SUM(H51:H59) -> 0
C65: =JAN!C65 -> Entertainment | D65: =JAN!D65 -> Restaurants, Bars, Etc. | E65: =JAN!E65 -> Variable | G65: =JAN!G65 -> 0 | H65: =G65-F65 -> 0
D66: =JAN!D66 -> Travel (Personal) | E66: =JAN!E66 -> Variable | G66: =JAN!G66 -> 0 | H66: 0
D67: =JAN!D67 -> Hobbies, Other Entertainment | E67: =JAN!E67 -> Variable | G67: =JAN!G67 -> 0 | H67: 0
D68: =JAN!D68 -> Work trips food & drink | E68: =JAN!E68 -> Variable | G68: =JAN!G68 -> 0 | H68: 0
D69: =JAN!D69 -> 0 | E69: =JAN!E69 -> Variable | G69: =JAN!G69 -> 0 | H69: =G69-F69 -> 0
D70: =JAN!D70 -> 0 | E70: =JAN!E70 -> Variable | G70: =JAN!G70 -> 0 | H70: 0
D71: Subtotal | F71: =SUM(F65:F70) -> 0 | G71: =SUM(G65:G70) -> 0 | H71: =SUM(H65:H70) -> 0
C72: =JAN!C72 -> Miscellaneous | D72: =JAN!D72 -> Gifts - Morgan | E72: =JAN!E72 -> Variable | G72: =JAN!G72 -> 0 | H72: =G72-F72 -> 0
D73: =JAN!D73 -> Gifts - Others | E73: =JAN!E73 -> Variable | G73: =JAN!G73 -> 0 | H73: 0
D74: =JAN!D74 -> Donations | E74: =JAN!E74 -> Variable | G74: =JAN!G74 -> 65 | H74: 65
D75: =JAN!D75 -> Tips, Uber, DoorDash, etc | E75: =JAN!E75 -> Variable | G75: =JAN!G75 -> 0 | H75: 0
D76: =JAN!D76 -> Subscriptions (MS Office, Streaming Services, etc.) | E76: =JAN!E76 -> Variable | G76: =JAN!G76 -> 0 | H76: 0
D77: =JAN!D77 -> Cash Expenses | E77: =JAN!E77 -> Variable | G77: =JAN!G77 -> 0 | H77: 0
D78: =JAN!D78 -> Pension Contribution | E78: =JAN!E78 -> Variable | G78: =JAN!G78 -> 0 | H78: =G78-F78 -> 0
D79: =JAN!D79 -> Contributory Insurance | E79: =JAN!E79 -> Variable | G79: =JAN!G79 -> 0 | H79: 0
D80: =JAN!D80 -> Other Miscellaneous | E80: =JAN!E80 -> Variable | G80: =JAN!G80 -> 0 | H80: 0
D81: =JAN!D81 -> 0 | E81: =JAN!E81 -> Variable | G81: =JAN!G81 -> 0 | H81: 0
D82: =JAN!D82 -> 0 | E82: =JAN!E82 -> Variable | G82: =JAN!G82 -> 0 | H82: 0
D83: Subtotal | F83: =SUM(F72:F76) -> 0 | G83: =SUM(G72:G76) -> 65 | H83: =SUM(H72:H76) -> 65
C84: TOTAL EXPENSES | F84: =SUM(F83,F71,F64,F50,F42,F33) -> 0 | G84: =SUM(G83,G71,G64,G50,G42,G33) -> 65 | H84: =SUM(H83,H71,H64,H50,H42,H33) -> 65
B86: GOALS | C86: =JAN!C86 -> Savings | D86: =JAN!D86 -> Emergency Funds Safety Net (High Interest Online Savings Acct) | E86: =JAN!E86 -> Fixed | G86: =JAN!G86 -> 120 | H86: =G86-F86 -> 120
D87: =JAN!D87 -> Additional Retirement Savings | E87: =JAN!E87 -> Variable | G87: =JAN!G87 -> 0 | H87: 0
D88: =JAN!D88 -> Short-term (Family visits, credit cards, etc.) | E88: =JAN!E88 -> Variable | G88: =JAN!G88 -> 0 | H88: 0
D89: =JAN!D89 -> Vacations | E89: =JAN!E89 -> Variable | G89: =JAN!G89 -> 0 | H89: 0
D90: =JAN!D90 -> Long-term (House, Moving Exp, Furniture, Food Staples, etc.) | E90: =JAN!E90 -> Variable | G90: =JAN!G90 -> 0 | H90: =G90-F90 -> 0
D91: =JAN!D91 -> Long-term Car | E91: =JAN!E91 -> Variable | G91: =JAN!G91 -> 0 | H91: 0
D92: =JAN!D92 -> 0 | E92: =JAN!E92 -> Variable | G92: =JAN!G92 -> 0 | H92: 0
D93: =JAN!D93 -> 0 | E93: =JAN!E93 -> Variable | G93: =JAN!G93 -> 0 | H93: 0
C94: TOTAL SAVINGS | F94: =SUM(F86:F88) -> 0 | G94: =SUM(G86:G91) -> 120 | H94: =SUM(H86:H91) -> 120
B96: PROJECTED | C96: MONEY LEFT TO SPEND THIS MONTH | F96: =F19-F84-F94 -> 0 | G96: =G19-G84-G94 -> 6583.666667 | H96: =F96-G96 -> -6583.666667
C97: EXTRA MONEY SAVED SO FAR THIS YEAR | F97: =F96+JAN!F97 -> 6768.666667 | G97: =G96+JAN!G97 -> 13167.33333 | H97: =F97-G97 -> -6398.666667

Sheet MAR
B2: MONTHLY BUDGET
C4: CATEGORY | D4: DESCRIPTION | E4: TYPE | F4: ACTUAL | G4: BUDGET | H4: OVER / (UNDER)
B5: INCOME | C5: =FEB!C5 -> Paycheck (Every 2-weeks, After-Tax) | D5: =FEB!D5 -> New Jersey (See Savings Goal tab for details) | E5: Fixed | G5: =FEB!G5 -> 6768.666667 | H5: =G5-F5 -> 6768.666667
D6: =FEB!D6 -> Resilent Minds | E6: =FEB!E6 -> Variable | G6: =FEB!G6 -> 0 | H6: =G6-F6 -> 0
D7: =FEB!D7 -> 0 | E7: =FEB!E7 -> 0 | G7: =FEB!G7 -> 0 | H7: =G7-F7 -> 0
D8: =FEB!D8 -> 0 | E8: =FEB!E8 -> 0 | G8: =FEB!G8 -> 0 | H8: 0
D9: =FEB!D9 -> 0 | E9: =FEB!E9 -> 0 | G9: =FEB!G9 -> 0 | H9: =G9-F9 -> 0
D10: Subtotal | F10: =SUM(F5:F9) -> 0 | G10: =SUM(G5:G9) -> 6768.666667 | H10: =SUM(H5:H9) -> 6768.666667
C11: =FEB!C11 -> Additional Income | D11: =FEB!D11 -> Bonuses, Tips, Commissions, Miscellaneous Sales, Etc. | E11: =FEB!E11 -> Variable | G11: =FEB!G11 -> 0 | H11: =G11-F11 -> 0
D12: =FEB!D12 -> Savings Interest | E12: =FEB!E12 -> Fixed | G12: =FEB!G12 -> 0 | H12: =G12-F12 -> 0
D13: =FEB!D13 -> Credit Card Cash Back | E13: =FEB!E13 -> Variable | G13: =FEB!G13 -> 0 | H13: =G13-F13 -> 0
D14: =FEB!D14 -> Credit Card Cash Back | E14: =FEB!E14 -> Variable | G14: =FEB!G14 -> 0 | H14: =G14-F14 -> 0
D15: =FEB!D15 -> Credit Card Cash Back | E15: =FEB!E15 -> Variable | G15: =FEB!G15 -> 0 | H15: 0
D16: =FEB!D16 -> 0 | E16: =FEB!E16 -> Variable | G16: =FEB!G16 -> 0 | H16: 0
D17: =FEB!D17 -> 0 | E17: =FEB!E17 -> Variable | G17: =FEB!G17 -> 0 | H17: 0
D18: Subtotal | F18: =SUM(F11:F13) -> 0 | G18: =SUM(G11:G13) -> 0 | H18: =SUM(H11:H13) -> 0
C19: TOTAL INCOME | F19: =SUM(F18,F10) -> 0 | G19: =SUM(G18,G10) -> 6768.666667 | H19: =SUM(H18,H10) -> 6768.666667
B21: EXPENSES | C21: =FEB!C21 -> Home | D21: =FEB!D21 -> Rent/Mortgage | E21: =FEB!E21 -> Fixed | G21: =FEB!G21 -> 0 | H21: =G21-F21 -> 0
D22: =FEB!D22 -> Home Insurance | E22: =FEB!E22 -> Fixed | G22: =FEB!G22 -> 0 | H22: 0
D23: =FEB!D23 -> HOA | E23: =FEB!E23 -> Fixed | G23: =FEB!G23 -> 0 | H23: 0
D24: =FEB!D24 -> Electric | E24: =FEB!E24 -> Variable | G24: =FEB!G24 -> 0 | H24: =G24-F24 -> 0
D25: =FEB!D25 -> Gas | E25: =FEB!E25 -> Fixed | G25: =FEB!G25 -> 0 | H25: 0
D26: =FEB!D26 -> Water & Garbage | E26: =FEB!E26 -> Variable | G26: =FEB!G26 -> 0 | H26: 0
D27: =FEB!D27 -> Internet | E27: =FEB!E27 -> Variable | G27: =FEB!G27 -> 0 | H27: 0
D28: =FEB!D28 -> Personal Property or Other Taxes | E28: =FEB!E28 -> Variable | G28: =FEB!G28 -> 0 | H28: 0
D29: =FEB!D29 -> Phone | E29: =FEB!E29 -> Fixed | G29: =FEB!G29 -> 0 | H29: =G29-F29 -> 0
D30: =FEB!D30 -> Home Furnishings, Repairs | E30: =FEB!E30 -> Variable | G30: =FEB!G30 -> 0 | H30: 0
D31: =FEB!D31 -> 0 | E31: =FEB!E31 -> Variable | G31: =FEB!G31 -> 0 | H31: 0
D32: =FEB!D32 -> 0 | E32: =FEB!E32 -> Variable | G32: =FEB!G32 -> 0 | H32: 0
D33: Subtotal | F33: =SUM(F21:F30) -> 0 | G33: =SUM(G21:G30) -> 0 | H33: =SUM(H21:H30) -> 0
C34: =FEB!C34 -> Transportation | D34: =FEB!D34 -> Car Insurance | E34: =FEB!E34 -> Fixed | G34: =FEB!G34 -> 0 | H34: =G34-F34 -> 0
D35: =FEB!D35 -> Car Oil Changes | E35: =FEB!E35 -> Variable | G35: =FEB!G35 -> 0 | H35: 0
D36: =FEB!D36 -> Car Tires | E36: =FEB!E36 -> Variable | G36: =FEB!G36 -> 0 | H36: 0
D37: =FEB!D37 -> Car Repairs | E37: =FEB!E37 -> Variable | G37: =FEB!G37 -> 0 | H37: =G37-F37 -> 0
D38: =FEB!D38 -> Auto Gas | E38: =FEB!E38 -> Variable | G38: =FEB!G38 -> 0 | H38: 0
D39: =FEB!D39 -> Public Transit / Ride-Share Programs | E39: =FEB!E39 -> Fixed | G39: =FEB!G39 -> 0 | H39: 0
D40: =FEB!D40 -> 0 | E40: =FEB!E40 -> Fixed | G40: =FEB!G40 -> 0 | H40: 0
D41: =FEB!D41 -> 0 | E41: =FEB!E41 -> Fixed | G41: =FEB!G41 -> 0 | H41: 0
D42: Subtotal | F42: =SUM(F34:F40) -> 0 | G42: =SUM(G34:G40) -> 0 | H42: =SUM(H34:H40) -> 0
C43: =FEB!C43 -> Other Debt Payments | D43: =FEB!D43 -> Car Loan | E43: =FEB!E43 -> Fixed | G43: =FEB!G43 -> 0 | H43: =G43-F43 -> 0
D44: =FEB!D44 -> Credit Card #1 | E44: =FEB!E44 -> Variable | G44: =FEB!G44 -> 0 | H44: 0
D45: =FEB!D45 -> Credit Card #2 | E45: =FEB!E45 -> Variable | G45: =FEB!G45 -> 0 | H45: 0
D46: =FEB!D46 -> Credit Card #3 | E46: =FEB!E46 -> Variable | G46: =FEB!G46 -> 0 | H46: 0
D47: =FEB!D47 -> 0 | E47: =FEB!E47 -> Fixed | G47: =FEB!G47 -> 0 | H47: =G47-F47 -> 0
D48: =FEB!D48 -> 0 | E48: =FEB!E48 -> Fixed | G48: =FEB!G48 -> 0 | H48: 0
D49: =FEB!D49 -> 0 | E49: =FEB!E49 -> Fixed | G49: =FEB!G49 -> 0 | H49: 0
D50: Subtotal | F50: =SUM(F43:F47) -> 0 | G50: =SUM(G43:G47) -> 0 | H50: =SUM(H43:H47) -> 0
C51: =FEB!C51 -> Family Care | D51: =FEB!D51 -> Medical Insurance | E51: =FEB!E51 -> Variable | G51: =FEB!G51 -> 0 | H51: =G51-F51 -> 0
D52: =FEB!D52 -> Medical CoPays | E52: =FEB!E52 -> Variable | G52: =FEB!G52 -> 0 | H52: 0
D53: =FEB!D53 -> Medical Out-of-Pocket | E53: =FEB!E53 -> Variable | G53: =FEB!G53 -> 0 | H53: 0
D54: =FEB!D54 -> Dental | E54: =FEB!E54 -> Variable | G54: =FEB!G54 -> 0 | H54: 0
D55: =FEB!D55 -> Groceries | E55: =FEB!E55 -> Variable | G55: =FEB!G55 -> 0 | H55: 0
D56: =FEB!D56 -> Prescriptions | E56: =FEB!E56 -> Variable | G56: =FEB!G56 -> 0 | H56: 0
D57: =FEB!D57 -> Vitamins and Gummies | E57: =FEB!E57 -> Variable | G57: =FEB!G57 -> 0 | H57: 0
D58: =FEB!D58 -> Clothing, shoes, hats, etc | E58: =FEB!E58 -> Variable | G58: =FEB!G58 -> 0 | H58: 0
D59: =FEB!D59 -> Personal Care (Haircuts, Pedicures, Etc.) | E59: =FEB!E59 -> Variable | G59: =FEB!G59 -> 0 | H59: 0
D60: =FEB!D60 -> Gym | E60: =FEB!E60 -> Variable | G60: =FEB!G60 -> 0 | H60: =G60-F60 -> 0
D61: =FEB!D61 -> Pets (Food, Vet, Boarding, Etc.) | E61: =FEB!E61 -> Variable | G61: =FEB!G61 -> 0 | H61: =G61-F61 -> 0
D62: =FEB!D62 -> Alchohol | E62: =FEB!E62 -> Variable | G62: =FEB!G62 -> 0 | H62: =G62-F62 -> 0
D63: =FEB!D63 -> 0 | E63: =FEB!E63 -> Variable | G63: =FEB!G63 -> 0 | H63: =G63-F63 -> 0
D64: Subtotal | F64: =SUM(F51:F59) -> 0 | G64: =SUM(G51:G59) -> 0 | H64: =SUM(H51:H59) -> 0
C65: =FEB!C65 -> Entertainment | D65: =FEB!D65 -> Restaurants, Bars, Etc. | E65: =FEB!E65 -> Variable | G65: =FEB!G65 -> 0 | H65: =G65-F65 -> 0
D66: =FEB!D66 -> Travel (Personal) | E66: =FEB!E66 -> Variable | G66: =FEB!G66 -> 0 | H66: 0
D67: =FEB!D67 -> Hobbies, Other Entertainment | E67: =FEB!E67 -> Variable | G67: =FEB!G67 -> 0 | H67: 0
D68: =FEB!D68 -> Work trips food & drink | E68: =FEB!E68 -> Variable | G68: =FEB!G68 -> 0 | H68: 0
D69: =FEB!D69 -> 0 | E69: =FEB!E69 -> Variable | G69: =FEB!G69 -> 0 | H69: 0
D70: =FEB!D70 -> 0 | E70: =FEB!E70 -> Variable | G70: =FEB!G70 -> 0 | H70: 0
D71: Subtotal | F71: =SUM(F65:F70) -> 0 | G71: =SUM(G65:G70) -> 0 | H71: =SUM(H65:H70) -> 0
C72: =FEB!C72 -> Miscellaneous | D72: =FEB!D72 -> Gifts - Morgan | E72: =FEB!E72 -> Variable | G72: =FEB!G72 -> 0 | H72: =G72-F72 -> 0
D73: =FEB!D73 -> Gifts - Others | E73: =FEB!E73 -> Variable | G73: =FEB!G73 -> 0 | H73: 0
D74: =FEB!D74 -> Donations | E74: =FEB!E74 -> Variable | G74: =FEB!G74 -> 65 | H74: 65
D75: =FEB!D75 -> Tips, Uber, DoorDash, etc | E75: =FEB!E75 -> Variable | G75: =FEB!G75 -> 0 | H75: 0
D76: =FEB!D76 -> Subscriptions (MS Office, Streaming Services, etc.) | E76: =FEB!E76 -> Variable | G76: =FEB!G76 -> 0 | H76: 0
D77: =FEB!D77 -> Cash Expenses | E77: =FEB!E77 -> Variable | G77: =FEB!G77 -> 0 | H77: 0
D78: =FEB!D78 -> Pension Contribution | E78: =FEB!E78 -> Variable | G78: =FEB!G78 -> 0 | H78: 0
D79: =FEB!D79 -> Contributory Insurance | E79: =FEB!E79 -> Variable | G79: =FEB!G79 -> 0 | H79: 0
D80: =FEB!D80 -> Other Miscellaneous | E80: =FEB!E80 -> Variable | G80: =FEB!G80 -> 0 | H80: 0
D81: =FEB!D81 -> 0 | E81: =FEB!E81 -> Variable | G81: =FEB!G81 -> 0 | H81: 0
D82: =FEB!D82 -> 0 | E82: =FEB!E82 -> Variable | G82: =FEB!G82 -> 0 | H82: 0
D83: Subtotal | F83: =SUM(F72:F76) -> 0 | G83: =SUM(G72:G76) -> 65 | H83: =SUM(H72:H76) -> 65
C84: TOTAL EXPENSES | F84: =SUM(F83,F71,F64,F50,F42,F33) -> 0 | G84: =SUM(G83,G71,G64,G50,G42,G33) -> 65 | H84: =SUM(H83,H71,H64,H50,H42,H33) -> 65
B86: GOALS | C86: =FEB!C86 -> Savings | D86: =FEB!D86 -> Emergency Funds Safety Net (High Interest Online Savings Acct) | E86: =FEB!E86 -> Fixed | G86: =FEB!G86 -> 120 | H86: =G86-F86 -> 120
D87: =FEB!D87 -> Additional Retirement Savings | E87: =FEB!E87 -> Variable | G87: =FEB!G87 -> 0 | H87: 0
D88: =FEB!D88 -> Short-term (Family visits, credit cards, etc.) | E88: =FEB!E88 -> Variable | G88: =FEB!G88 -> 0 | H88: 0
D89: =FEB!D89 -> Vacations | E89: =FEB!E89 -> Variable | G89: =FEB!G89 -> 0 | H89: 0
D90: =FEB!D90 -> Long-term (House, Moving Exp, Furniture, Food Staples, etc.) | E90: =FEB!E90 -> Variable | G90: =FEB!G90 -> 0 | H90: 0
D91: =FEB!D91 -> Long-term Car | E91: =FEB!E91 -> Variable | G91: =FEB!G91 -> 0 | H91: 0
D92: =FEB!D92 -> 0 | E92: =FEB!E92 -> Variable | G92: =FEB!G92 -> 0 | H92: =G92-F92 -> 0
D93: =FEB!D93 -> 0 | E93: =FEB!E93 -> Variable | G93: =FEB!G93 -> 0 | H93: =G93-F93 -> 0
C94: TOTAL SAVINGS | F94: =SUM(F86:F88) -> 0 | G94: =SUM(G86:G91) -> 120 | H94: =SUM(H86:H91) -> 120
B96: PROJECTED | C96: MONEY LEFT TO SPEND THIS MONTH | F96: =F19-F84-F94 -> 0 | G96: =G19-G84-G94 -> 6583.666667 | H96: =F96-G96 -> -6583.666667
C97: EXTRA MONEY SAVED SO FAR THIS YEAR | F97: =F96+FEB!F97 -> 6768.666667 | G97: =G96+FEB!G97 -> 19751 | H97: =F97-G97 -> -12982.33333

Sheet APR
B2: MONTHLY BUDGET
C4: CATEGORY | D4: DESCRIPTION | E4: TYPE | F4: ACTUAL | G4: BUDGET | H4: OVER / (UNDER)
B5: INCOME | C5: =MAR!C5 -> Paycheck (Every 2-weeks, After-Tax) | D5: =MAR!D5 -> New Jersey (See Savings Goal tab for details) | E5: =MAR!E5 -> Fixed | G5: =MAR!G5 -> 6768.666667 | H5: =G5-F5 -> 6768.666667
D6: =MAR!D6 -> Resilent Minds | E6: =MAR!E6 -> Variable | G6: =MAR!G6 -> 0 | H6: =G6-F6 -> 0
D7: =MAR!D7 -> 0 | E7: =MAR!E7 -> 0 | G7: =MAR!G7 -> 0 | H7: =G7-F7 -> 0
D8: =MAR!D8 -> 0 | E8: =MAR!E8 -> 0 | G8: =MAR!G8 -> 0 | H8: 0
D9: =MAR!D9 -> 0 | E9: =MAR!E9 -> 0 | G9: =MAR!G9 -> 0 | H9: =G9-F9 -> 0
D10: Subtotal | F10: =SUM(F5:F9) -> 0 | G10: =SUM(G5:G9) -> 6768.666667 | H10: =SUM(H5:H9) -> 6768.666667
C11: =MAR!C11 -> Additional Income | D11: =MAR!D11 -> Bonuses, Tips, Commissions, Miscellaneous Sales, Etc. | E11: =MAR!E11 -> Variable | G11: =MAR!G11 -> 0 | H11: =G11-F11 -> 0
D12: =MAR!D12 -> Savings Interest | E12: =MAR!E12 -> Fixed | G12: =MAR!G12 -> 0 | H12: =G12-F12 -> 0
D13: =MAR!D13 -> Credit Card Cash Back | E13: =MAR!E13 -> Variable | G13: =MAR!G13 -> 0 | H13: =G13-F13 -> 0
D14: =MAR!D14 -> Credit Card Cash Back | E14: =MAR!E14 -> Variable | G14: =MAR!G14 -> 0 | H14: =G14-F14 -> 0
D15: =MAR!D15 -> Credit Card Cash Back | E15: =MAR!E15 -> Variable | G15: =MAR!G15 -> 0 | H15: 0
D16: =MAR!D16 -> 0 | E16: =MAR!E16 -> Variable | G16: =MAR!G16 -> 0 | H16: 0
D17: =MAR!D17 -> 0 | E17: =MAR!E17 -> Variable | G17: =MAR!G17 -> 0 | H17: 0
D18: Subtotal | F18: =SUM(F11:F13) -> 0 | G18: =SUM(G11:G13) -> 0 | H18: =SUM(H11:H13) -> 0
C19: TOTAL INCOME | F19: =SUM(F18,F10) -> 0 | G19: =SUM(G18,G10) -> 6768.666667 | H19: =SUM(H18,H10) -> 6768.666667
B21: EXPENSES | C21: =MAR!C21 -> Home | D21: =MAR!D21 -> Rent/Mortgage | E21: =MAR!E21 -> Fixed | G21: =MAR!G21 -> 0 | H21: =G21-F21 -> 0
D22: =MAR!D22 -> Home Insurance | E22: =MAR!E22 -> Fixed | G22: =MAR!G22 -> 0 | H22: 0
D23: =MAR!D23 -> HOA | E23: =MAR!E23 -> Fixed | G23: =MAR!G23 -> 0 | H23: 0
D24: =MAR!D24 -> Electric | E24: =MAR!E24 -> Variable | G24: =MAR!G24 -> 0 | H24: =G24-F24 -> 0
D25: =MAR!D25 -> Gas | E25: =MAR!E25 -> Fixed | G25: =MAR!G25 -> 0 | H25: 0
D26: =MAR!D26 -> Water & Garbage | E26: =MAR!E26 -> Variable | G26: =MAR!G26 -> 0 | H26: 0
D27: =MAR!D27 -> Internet | E27: =MAR!E27 -> Variable | G27: =MAR!G27 -> 0 | H27: 0
D28: =MAR!D28 -> Personal Property or Other Taxes | E28: =MAR!E28 -> Variable | G28: =MAR!G28 -> 0 | H28: 0
D29: =MAR!D29 -> Phone | E29: =MAR!E29 -> Fixed | G29: =MAR!G29 -> 0 | H29: =G29-F29 -> 0
D30: =MAR!D30 -> Home Furnishings, Repairs | E30: =MAR!E30 -> Variable | G30: =MAR!G30 -> 0 | H30: 0
D31: =MAR!D31 -> 0 | E31: =MAR!E31 -> Variable | G31: =MAR!G31 -> 0 | H31: 0
D32: =MAR!D32 -> 0 | E32: =MAR!E32 -> Variable | G32: =MAR!G32 -> 0 | H32: 0
D33: Subtotal | F33: =SUM(F21:F30) -> 0 | G33: =SUM(G21:G30) -> 0 | H33: =SUM(H21:H30) -> 0
C34: =MAR!C34 -> Transportation | D34: =MAR!D34 -> Car Insurance | E34: =MAR!E34 -> Fixed | G34: =MAR!G34 -> 0 | H34: =G34-F34 -> 0
D35: =MAR!D35 -> Car Oil Changes | E35: =MAR!E35 -> Variable | G35: =MAR!G35 -> 0 | H35: 0
D36: =MAR!D36 -> Car Tires | E36: =MAR!E36 -> Variable | G36: =MAR!G36 -> 0 | H36: 0
D37: =MAR!D37 -> Car Repairs | E37: =MAR!E37 -> Variable | G37: =MAR!G37 -> 0 | H37: 0
D38: =MAR!D38 -> Auto Gas | E38: =MAR!E38 -> Variable | G38: =MAR!G38 -> 0 | H38: =G38-F38 -> 0
D39: =MAR!D39 -> Public Transit / Ride-Share Programs | E39: =MAR!E39 -> Fixed | G39: =MAR!G39 -> 0 | H39: 0
D40: =MAR!D40 -> 0 | E40: =MAR!E40 -> Fixed | G40: =MAR!G40 -> 0 | H40: 0
D41: =MAR!D41 -> 0 | E41: =MAR!E41 -> Fixed | G41: =MAR!G41 -> 0 | H41: 0
D42: Subtotal | F42: =SUM(F34:F40) -> 0 | G42: =SUM(G34:G40) -> 0 | H42: =SUM(H34:H40) -> 0
C43: =MAR!C43 -> Other Debt Payments | D43: =MAR!D43 -> Car Loan | E43: =MAR!E43 -> Fixed | G43: =MAR!G43 -> 0 | H43: =G43-F43 -> 0
D44: =MAR!D44 -> Credit Card #1 | E44: =MAR!E44 -> Variable | G44: =MAR!G44 -> 0 | H44: 0
D45: =MAR!D45 -> Credit Card #2 | E45: =MAR!E45 -> Variable | G45: =MAR!G45 -> 0 | H45: 0
D46: =MAR!D46 -> Credit Card #3 | E46: =MAR!E46 -> Variable | G46: =MAR!G46 -> 0 | H46: =G46-F46 -> 0
D47: =MAR!D47 -> 0 | E47: =MAR!E47 -> Fixed | G47: =MAR!G47 -> 0 | H47: 0
D48: =MAR!D48 -> 0 | E48: =MAR!E48 -> Fixed | G48: =MAR!G48 -> 0 | H48: 0
D49: =MAR!D49 -> 0 | E49: =MAR!E49 -> Fixed | G49: =MAR!G49 -> 0 | H49: 0
D50: Subtotal | F50: =SUM(F43:F47) -> 0 | G50: =SUM(G43:G47) -> 0 | H50: =SUM(H43:H47) -> 0
C51: =MAR!C51 -> Family Care | D51: =MAR!D51 -> Medical Insurance | E51: =MAR!E51 -> Variable | G51: =MAR!G51 -> 0 | H51: =G51-F51 -> 0
D52: =MAR!D52 -> Medical CoPays | E52: =MAR!E52 -> Variable | G52: =MAR!G52 -> 0 | H52: 0
D53: =MAR!D53 -> Medical Out-of-Pocket | E53: =MAR!E53 -> Variable | G53: =MAR!G53 -> 0 | H53: 0
D54: =MAR!D54 -> Dental | E54: =MAR!E54 -> Variable | G54: =MAR!G54 -> 0 | H54: 0
D55: =MAR!D55 -> Groceries | E55: =MAR!E55 -> Variable | G55: =MAR!G55 -> 0 | H55: =G55-F55 -> 0
D56: =MAR!D56 -> Prescriptions | E56: =MAR!E56 -> Variable | G56: =MAR!G56 -> 0 | H56: 0
D57: =MAR!D57 -> Vitamins and Gummies | E57: =MAR!E57 -> Variable | G57: =MAR!G57 -> 0 | H57: 0
D58: =MAR!D58 -> Clothing, shoes, hats, etc | E58: =MAR!E58 -> Variable | G58: =MAR!G58 -> 0 | H58: 0
D59: =MAR!D59 -> Personal Care (Haircuts, Pedicures, Etc.) | E59: =MAR!E59 -> Variable | G59: =MAR!G59 -> 0 | H59: 0
D60: =MAR!D60 -> Gym | E60: =MAR!E60 -> Variable | G60: =MAR!G60 -> 0 | H60: 0
D61: =MAR!D61 -> Pets (Food, Vet, Boarding, Etc.) | E61: =MAR!E61 -> Variable | G61: =MAR!G61 -> 0 | H61: 0
D62: =MAR!D62 -> Alchohol | E62: =MAR!E62 -> Variable | G62: =MAR!G62 -> 0 | H62: 0
D63: =MAR!D63 -> 0 | E63: =MAR!E63 -> Variable | G63: =MAR!G63 -> 0 | H63: 0
D64: Subtotal | F64: =SUM(F51:F59) -> 0 | G64: =SUM(G51:G59) -> 0 | H64: =SUM(H51:H59) -> 0
C65: =MAR!C65 -> Entertainment | D65: =MAR!D65 -> Restaurants, Bars, Etc. | E65: =MAR!E65 -> Variable | G65: =MAR!G65 -> 0 | H65: =G65-F65 -> 0
D66: =MAR!D66 -> Travel (Personal) | E66: =MAR!E66 -> Variable | G66: =MAR!G66 -> 0 | H66: 0
D67: =MAR!D67 -> Hobbies, Other Entertainment | E67: =MAR!E67 -> Variable | G67: =MAR!G67 -> 0 | H67: 0
D68: =MAR!D68 -> Work trips food & drink | E68: =MAR!E68 -> Variable | G68: =MAR!G68 -> 0 | H68: =G68-F68 -> 0
D69: =MAR!D69 -> 0 | E69: =MAR!E69 -> Variable | G69: =MAR!G69 -> 0 | H69: 0
D70: =MAR!D70 -> 0 | E70: =MAR!E70 -> Variable | G70: =MAR!G70 -> 0 | H70: 0
D71: Subtotal | F71: =SUM(F65:F70) -> 0 | G71: =SUM(G65:G70) -> 0 | H71: =SUM(H65:H70) -> 0
C72: =MAR!C72 -> Miscellaneous | D72: =MAR!D72 -> Gifts - Morgan | E72: =MAR!E72 -> Variable | G72: =MAR!G72 -> 0 | H72: =G72-F72 -> 0
D73: =MAR!D73 -> Gifts - Others | E73: =MAR!E73 -> Variable | G73: =MAR!G73 -> 0 | H73: =G73-F73 -> 0
D74: =MAR!D74 -> Donations | E74: =MAR!E74 -> Variable | G74: =MAR!G74 -> 65 | H74: =G74-F74 -> 65
D75: =MAR!D75 -> Tips, Uber, DoorDash, etc | E75: =MAR!E75 -> Variable | G75: =MAR!G75 -> 0 | H75: =G75-F75 -> 0
D76: =MAR!D76 -> Subscriptions (MS Office, Streaming Services, etc.) | E76: =MAR!E76 -> Variable | G76: =MAR!G76 -> 0 | H76: =G76-F76 -> 0
D77: =MAR!D77 -> Cash Expenses | E77: =MAR!E77 -> Variable | G77: =MAR!G77 -> 0 | H77: 0
D78: =MAR!D78 -> Pension Contribution | E78: =MAR!E78 -> Variable | G78: =MAR!G78 -> 0 | H78: 0
D79: =MAR!D79 -> Contributory Insurance | E79: =MAR!E79 -> Variable | G79: =MAR!G79 -> 0 | H79: 0
D80: =MAR!D80 -> Other Miscellaneous | E80: =MAR!E80 -> Variable | G80: =MAR!G80 -> 0 | H80: 0
D81: =MAR!D81 -> 0 | E81: =MAR!E81 -> Variable | G81: =MAR!G81 -> 0 | H81: 0
D82: =MAR!D82 -> 0 | E82: =MAR!E82 -> Variable | G82: =MAR!G82 -> 0 | H82: 0
D83: Subtotal | F83: =SUM(F72:F76) -> 0 | G83: =SUM(G72:G76) -> 65 | H83: =SUM(H72:H76) -> 65
C84: TOTAL EXPENSES | F84: =SUM(F83,F71,F64,F50,F42,F33) -> 0 | G84: =SUM(G83,G71,G64,G50,G42,G33) -> 65 | H84: =SUM(H83,H71,H64,H50,H42,H33) -> 65
B86: GOALS | C86: =MAR!C86 -> Savings | D86: =MAR!D86 -> Emergency Funds Safety Net (High Interest Online Savings Acct) | E86: =MAR!E86 -> Fixed | G86: =MAR!G86 -> 120 | H86: =G86-F86 -> 120
D87: =MAR!D87 -> Additional Retirement Savings | E87: =MAR!E87 -> Variable | G87: =MAR!G87 -> 0 | H87: 0
D88: =MAR!D88 -> Short-term (Family visits, credit cards, etc.) | E88: =MAR!E88 -> Variable | G88: =MAR!G88 -> 0 | H88: 0
D89: =MAR!D89 -> Vacations | E89: =MAR!E89 -> Variable | G89: =MAR!G89 -> 0 | H89: =G89-F89 -> 0
D90: =MAR!D90 -> Long-term (House, Moving Exp, Furniture, Food Staples, etc.) | E90: =MAR!E90 -> Variable | G90: =MAR!G90 -> 0 | H90: 0
D91: =MAR!D91 -> Long-term Car | E91: =MAR!E91 -> Variable | G91: =MAR!G91 -> 0 | H91: 0
D92: =MAR!D92 -> 0 | E92: =MAR!E92 -> Variable | G92: =MAR!G92 -> 0 | H92: 0
D93: =MAR!D93 -> 0 | E93: =MAR!E93 -> Variable | G93: =MAR!G93 -> 0 | H93: 0
C94: TOTAL SAVINGS | F94: =SUM(F86:F88) -> 0 | G94: =SUM(G86:G91) -> 120 | H94: =SUM(H86:H91) -> 120
B96: PROJECTED | C96: MONEY LEFT TO SPEND THIS MONTH | F96: =F19-F84-F94 -> 0 | G96: =G19-G84-G94 -> 6583.666667 | H96: =F96-G96 -> -6583.666667
C97: EXTRA MONEY SAVED SO FAR THIS YEAR | F97: =F96+MAR!F97 -> 6768.666667 | G97: =G96+MAR!G97 -> 26334.66667 | H97: =F97-G97 -> -19566

Sheet MAY
B2: MONTHLY BUDGET
C4: CATEGORY | D4: DESCRIPTION | E4: TYPE | F4: ACTUAL | G4: BUDGET | H4: OVER / (UNDER)
B5: INCOME | C5: =APR!C5 -> Paycheck (Every 2-weeks, After-Tax) | D5: =APR!D5 -> New Jersey (See Savings Goal tab for details) | E5: =APR!E5 -> Fixed | G5: =APR!G5 -> 6768.666667 | H5: =G5-F5 -> 6768.666667
D6: =APR!D6 -> Resilent Minds | E6: =APR!E6 -> Variable | G6: =APR!G6 -> 0 | H6: =G6-F6 -> 0
D7: =APR!D7 -> 0 | E7: =APR!E7 -> 0 | G7: =APR!G7 -> 0 | H7: =G7-F7 -> 0
D8: =APR!D8 -> 0 | E8: =APR!E8 -> 0 | G8: =APR!G8 -> 0 | H8: 0
D9: =APR!D9 -> 0 | E9: =APR!E9 -> 0 | G9: =APR!G9 -> 0 | H9: =G9-F9 -> 0
D10: Subtotal | F10: =SUM(F5:F9) -> 0 | G10: =SUM(G5:G9) -> 6768.666667 | H10: =SUM(H5:H9) -> 6768.666667
C11: =APR!C11 -> Additional Income | D11: =APR!D11 -> Bonuses, Tips, Commissions, Miscellaneous Sales, Etc. | E11: =APR!E11 -> Variable | G11: =APR!G11 -> 0 | H11: =G11-F11 -> 0
D12: =APR!D12 -> Savings Interest | E12: =APR!E12 -> Fixed | G12: =APR!G12 -> 0 | H12: =G12-F12 -> 0
D13: =APR!D13 -> Credit Card Cash Back | E13: =APR!E13 -> Variable | G13: =APR!G13 -> 0 | H13: =G13-F13 -> 0
D14: =APR!D14 -> Credit Card Cash Back | E14: =APR!E14 -> Variable | G14: =APR!G14 -> 0 | H14: =G14-F14 -> 0
D15: =APR!D15 -> Credit Card Cash Back | E15: =APR!E15 -> Variable | G15: =APR!G15 -> 0 | H15: 0
D16: =APR!D16 -> 0 | E16: =APR!E16 -> Variable | G16: =APR!G16 -> 0 | H16: 0
D17: =APR!D17 -> 0 | E17: =APR!E17 -> Variable | G17: =APR!G17 -> 0 | H17: 0
D18: Subtotal | F18: =SUM(F11:F13) -> 0 | G18: =SUM(G11:G13) -> 0 | H18: =SUM(H11:H13) -> 0
C19: TOTAL INCOME | F19: =SUM(F18,F10) -> 0 | G19: =SUM(G18,G10) -> 6768.666667 | H19: =SUM(H18,H10) -> 6768.666667
B21: EXPENSES | C21: =APR!C21 -> Home | D21: =APR!D21 -> Rent/Mortgage | E21: =APR!E21 -> Fixed | G21: =APR!G21 -> 0 | H21: =G21-F21 -> 0
D22: =APR!D22 -> Home Insurance | E22: =APR!E22 -> Fixed | G22: =APR!G22 -> 0 | H22: 0
D23: =APR!D23 -> HOA | E23: =APR!E23 -> Fixed | G23: =APR!G23 -> 0 | H23: 0
D24: =APR!D24 -> Electric | E24: =APR!E24 -> Variable | G24: =APR!G24 -> 0 | H24: =G24-F24 -> 0
D25: =APR!D25 -> Gas | E25: =APR!E25 -> Fixed | G25: =APR!G25 -> 0 | H25: 0
D26: =APR!D26 -> Water & Garbage | E26: =APR!E26 -> Variable | G26: =APR!G26 -> 0 | H26: 0
D27: =APR!D27 -> Internet | E27: =APR!E27 -> Variable | G27: =APR!G27 -> 0 | H27: 0
D28: =APR!D28 -> Personal Property or Other Taxes | E28: =APR!E28 -> Variable | G28: =APR!G28 -> 0 | H28: =G28-F28 -> 0
D29: =APR!D29 -> Phone | E29: =APR!E29 -> Fixed | G29: =APR!G29 -> 0 | H29: 0
D30: =APR!D30 -> Home Furnishings, Repairs | E30: =APR!E30 -> Variable | G30: =APR!G30 -> 0 | H30: 0
D31: =APR!D31 -> 0 | E31: =APR!E31 -> Variable | G31: =APR!G31 -> 0 | H31: 0
D32: =APR!D32 -> 0 | E32: =APR!E32 -> Variable | G32: =APR!G32 -> 0 | H32: 0
D33: Subtotal | F33: =SUM(F21:F30) -> 0 | G33: =SUM(G21:G30) -> 0 | H33: =SUM(H21:H30) -> 0
C34: =APR!C34 -> Transportation | D34: =APR!D34 -> Car Insurance | E34: =APR!E34 -> Fixed | G34: =APR!G34 -> 0 | H34: =G34-F34 -> 0
D35: =APR!D35 -> Car Oil Changes | E35: =APR!E35 -> Variable | G35: =APR!G35 -> 0 | H35: 0
D36: =APR!D36 -> Car Tires | E36: =APR!E36 -> Variable | G36: =APR!G36 -> 0 | H36: 0
D37: =APR!D37 -> Car Repairs | E37: =APR!E37 -> Variable | G37: =APR!G37 -> 0 | H37: 0
D38: =APR!D38 -> Auto Gas | E38: =APR!E38 -> Variable | G38: =APR!G38 -> 0 | H38: =G38-F38 -> 0
D39: =APR!D39 -> Public Transit / Ride-Share Programs | E39: =APR!E39 -> Fixed | G39: =APR!G39 -> 0 | H39: 0
D40: =APR!D40 -> 0 | E40: =APR!E40 -> Fixed | G40: =APR!G40 -> 0 | H40: 0
D41: =APR!D41 -> 0 | E41: =APR!E41 -> Fixed | G41: =APR!G41 -> 0 | H41: 0
D42: Subtotal | F42: =SUM(F34:F41) -> 0 | G42: =SUM(G34:G41) -> 0 | H42: =SUM(H34:H41) -> 0
C43: =APR!C43 -> Other Debt Payments | D43: =APR!D43 -> Car Loan | E43: =APR!E43 -> Fixed | G43: =APR!G43 -> 0 | H43: =G43-F43 -> 0
D44: =APR!D44 -> Credit Card #1 | E44: =APR!E44 -> Variable | G44: =APR!G44 -> 0 | H44: 0
D45: =APR!D45 -> Credit Card #2 | E45: =APR!E45 -> Variable | G45: =APR!G45 -> 0 | H45: 0
D46: =APR!D46 -> Credit Card #3 | E46: =APR!E46 -> Variable | G46: =APR!G46 -> 0 | H46: 0
D47: =APR!D47 -> 0 | E47: =APR!E47 -> Fixed | G47: =APR!G47 -> 0 | H47: =G47-F47 -> 0
D48: =APR!D48 -> 0 | E48: =APR!E48 -> Fixed | G48: =APR!G48 -> 0 | H48: 0
D49: =APR!D49 -> 0 | E49: =APR!E49 -> Fixed | G49: =APR!G49 -> 0 | H49: 0
D50: Subtotal | F50: =SUM(F43:F47) -> 0 | G50: =SUM(G43:G47) -> 0 | H50: =SUM(H43:H47) -> 0
C51: =APR!C51 -> Family Care | D51: =APR!D51 -> Medical Insurance | E51: =APR!E51 -> Variable | G51: =APR!G51 -> 0 | H51: =G51-F51 -> 0
D52: =APR!D52 -> Medical CoPays | E52: =APR!E52 -> Variable | G52: =APR!G52 -> 0 | H52: 0
D53: =APR!D53 -> Medical Out-of-Pocket | E53: =APR!E53 -> Variable | G53: =APR!G53 -> 0 | H53: 0
D54: =APR!D54 -> Dental | E54: =APR!E54 -> Variable | G54: =APR!G54 -> 0 | H54: 0
D55: =APR!D55 -> Groceries | E55: =APR!E55 -> Variable | G55: =APR!G55 -> 0 | H55: 0
D56: =APR!D56 -> Prescriptions | E56: =APR!E56 -> Variable | G56: =APR!G56 -> 0 | H56: =G56-F56 -> 0
D57: =APR!D57 -> Vitamins and Gummies | E57: =APR!E57 -> Variable | G57: =APR!G57 -> 0 | H57: 0
D58: =APR!D58 -> Clothing, shoes, hats, etc | E58: =APR!E58 -> Variable | G58: =APR!G58 -> 0 | H58: 0
D59: =APR!D59 -> Personal Care (Haircuts, Pedicures, Etc.) | E59: =APR!E59 -> Variable | G59: =APR!G59 -> 0 | H59: 0
D60: =APR!D60 -> Gym | E60: =APR!E60 -> Variable | G60: =APR!G60 -> 0 | H60: 0
D61: =APR!D61 -> Pets (Food, Vet, Boarding, Etc.) | E61: =APR!E61 -> Variable | G61: =APR!G61 -> 0 | H61: 0
D62: =APR!D62 -> Alchohol | E62: =APR!E62 -> Variable | G62: =APR!G62 -> 0 | H62: 0
D63: =APR!D63 -> 0 | E63: =APR!E63 -> Variable | G63: =APR!G63 -> 0 | H63: 0
D64: Subtotal | F64: =SUM(F51:F59) -> 0 | G64: =SUM(G51:G59) -> 0 | H64: =SUM(H51:H59) -> 0
C65: =APR!C65 -> Entertainment | D65: =APR!D65 -> Restaurants, Bars, Etc. | E65: =APR!E65 -> Variable | G65: =APR!G65 -> 0 | H65: =G65-F65 -> 0
D66: =APR!D66 -> Travel (Personal) | E66: =APR!E66 -> Variable | G66: =APR!G66 -> 0 | H66: 0
D67: =APR!D67 -> Hobbies, Other Entertainment | E67: =APR!E67 -> Variable | G67: =APR!G67 -> 0 | H67: 0
D68: =APR!D68 -> Work trips food & drink | E68: =APR!E68 -> Variable | G68: =APR!G68 -> 0 | H68: 0
D69: =APR!D69 -> 0 | E69: =APR!E69 -> Variable | G69: =APR!G69 -> 0 | H69: 0
D70: =APR!D70 -> 0 | E70: =APR!E70 -> Variable | G70: =APR!G70 -> 0 | H70: 0
D71: Subtotal | F71: =SUM(F65:F70) -> 0 | G71: =SUM(G65:G70) -> 0 | H71: =SUM(H65:H70) -> 0
C72: =APR!C72 -> Miscellaneous | D72: =APR!D72 -> Gifts - Morgan | E72: =APR!E72 -> Variable | G72: =APR!G72 -> 0 | H72: =G72-F72 -> 0
D73: =APR!D73 -> Gifts - Others | E73: =APR!E73 -> Variable | G73: =APR!G73 -> 0 | H73: =G73-F73 -> 0
D74: =APR!D74 -> Donations | E74: =APR!E74 -> Variable | G74: =APR!G74 -> 65 | H74: =G74-F74 -> 65
D75: =APR!D75 -> Tips, Uber, DoorDash, etc | E75: =APR!E75 -> Variable | G75: =APR!G75 -> 0 | H75: =G75-F75 -> 0
D76: =APR!D76 -> Subscriptions (MS Office, Streaming Services, etc.) | E76: =APR!E76 -> Variable | G76: =APR!G76 -> 0 | H76: =G76-F76 -> 0
D77: =APR!D77 -> Cash Expenses | E77: =APR!E77 -> Variable | G77: =APR!G77 -> 0 | H77: 0
D78: =APR!D78 -> Pension Contribution | E78: =APR!E78 -> Variable | G78: =APR!G78 -> 0 | H78: 0
D79: =APR!D79 -> Contributory Insurance | E79: =APR!E79 -> Variable | G79: =APR!G79 -> 0 | H79: 0
D80: =APR!D80 -> Other Miscellaneous | E80: =APR!E80 -> Variable | G80: =APR!G80 -> 0 | H80: 0
D81: =APR!D81 -> 0 | E81: =APR!E81 -> Variable | G81: =APR!G81 -> 0 | H81: 0
D82: =APR!D82 -> 0 | E82: =APR!E82 -> Variable | G82: =APR!G82 -> 0 | H82: 0
D83: Subtotal | F83: =SUM(F72:F76) -> 0 | G83: =SUM(G72:G76) -> 65 | H83: =SUM(H72:H76) -> 65
C84: TOTAL EXPENSES | F84: =SUM(F83,F71,F64,F50,F42,F33) -> 0 | G84: =SUM(G83,G71,G64,G50,G42,G33) -> 65 | H84: =SUM(H83,H71,H64,H50,H42,H33) -> 65
B86: GOALS | C86: =APR!C86 -> Savings | D86: =APR!D86 -> Emergency Funds Safety Net (High Interest Online Savings Acct) | E86: =APR!E86 -> Fixed | G86: =APR!G86 -> 120 | H86: =G86-F86 -> 120
D87: =APR!D87 -> Additional Retirement Savings | E87: =APR!E87 -> Variable | G87: =APR!G87 -> 0 | H87: 0
D88: =APR!D88 -> Short-term (Family visits, credit cards, etc.) | E88: =APR!E88 -> Variable | G88: =APR!G88 -> 0 | H88: 0
D89: =APR!D89 -> Vacations | E89: =APR!E89 -> Variable | G89: =APR!G89 -> 0 | H89: =G89-F89 -> 0
D90: =APR!D90 -> Long-term (House, Moving Exp, Furniture, Food Staples, etc.) | E90: =APR!E90 -> Variable | G90: =APR!G90 -> 0 | H90: 0
D91: =APR!D91 -> Long-term Car | E91: =APR!E91 -> Variable | G91: =APR!G91 -> 0 | H91: 0
D92: =APR!D92 -> 0 | E92: =APR!E92 -> Variable | G92: =APR!G92 -> 0 | H92: 0
D93: =APR!D93 -> 0 | E93: =APR!E93 -> Variable | G93: =APR!G93 -> 0 | H93: 0
C94: TOTAL SAVINGS | F94: =SUM(F86:F88) -> 0 | G94: =SUM(G86:G91) -> 120 | H94: =SUM(H86:H91) -> 120
B96: PROJECTED | C96: MONEY LEFT TO SPEND THIS MONTH | F96: =F19-F84-F94 -> 0 | G96: =G19-G84-G94 -> 6583.666667 | H96: =F96-G96 -> -6583.666667
C97: EXTRA MONEY SAVED SO FAR THIS YEAR | F97: =F96+APR!F97 -> 6768.666667 | G97: =G96+APR!G97 -> 32918.33333 | H97: =F97-G97 -> -26149.66667

Sheet JUN
B2: MONTHLY BUDGET
C4: CATEGORY | D4: DESCRIPTION | E4: TYPE | F4: ACTUAL | G4: BUDGET | H4: OVER / (UNDER)
B5: INCOME | C5: =MAY!C5 -> Paycheck (Every 2-weeks, After-Tax) | D5: =MAY!D5 -> New Jersey (See Savings Goal tab for details) | E5: =MAY!E5 -> Fixed | G5: =MAY!G5 -> 6768.666667 | H5: =G5-F5 -> 6768.666667
D6: =MAY!D6 -> Resilent Minds | E6: =MAY!E6 -> Variable | G6: =MAY!G6 -> 0 | H6: =G6-F6 -> 0
D7: =MAY!D7 -> 0 | E7: =MAY!E7 -> 0 | G7: =MAY!G7 -> 0 | H7: =G7-F7 -> 0
D8: =MAY!D8 -> 0 | E8: =MAY!E8 -> 0 | G8: =MAY!G8 -> 0 | H8: 0
D9: =MAY!D9 -> 0 | E9: =MAY!E9 -> 0 | G9: =MAY!G9 -> 0 | H9: =G9-F9 -> 0
D10: Subtotal | F10: =SUM(F5:F9) -> 0 | G10: =SUM(G5:G9) -> 6768.666667 | H10: =SUM(H5:H9) -> 6768.666667
C11: =MAY!C11 -> Additional Income | D11: =MAY!D11 -> Bonuses, Tips, Commissions, Miscellaneous Sales, Etc. | E11: =MAY!E11 -> Variable | G11: =MAY!G11 -> 0 | H11: =G11-F11 -> 0
D12: =MAY!D12 -> Savings Interest | E12: =MAY!E12 -> Fixed | G12: =MAY!G12 -> 0 | H12: =G12-F12 -> 0
D13: =MAY!D13 -> Credit Card Cash Back | E13: =MAY!E13 -> Variable | G13: =MAY!G13 -> 0 | H13: =G13-F13 -> 0
D14: =MAY!D14 -> Credit Card Cash Back | E14: =MAY!E14 -> Variable | G14: =MAY!G14 -> 0 | H14: =G14-F14 -> 0
D15: =MAY!D15 -> Credit Card Cash Back | E15: =MAY!E15 -> Variable | G15: =MAY!G15 -> 0 | H15: 0
D16: =MAY!D16 -> 0 | E16: =MAY!E16 -> Variable | G16: =MAY!G16 -> 0 | H16: 0
D17: =MAY!D17 -> 0 | E17: =MAY!E17 -> Variable | G17: =MAY!G17 -> 0 | H17: 0
D18: Subtotal | F18: =SUM(F11:F13) -> 0 | G18: =SUM(G11:G13) -> 0 | H18: =SUM(H11:H13) -> 0
C19: TOTAL INCOME | F19: =SUM(F18,F10) -> 0 | G19: =SUM(G18,G10) -> 6768.666667 | H19: =SUM(H18,H10) -> 6768.666667
B21: EXPENSES | C21: =MAY!C21 -> Home | D21: =MAY!D21 -> Rent/Mortgage | E21: =MAY!E21 -> Fixed | G21: =MAY!G21 -> 0 | H21: =G21-F21 -> 0
D22: =MAY!D22 -> Home Insurance | E22: =MAY!E22 -> Fixed | G22: =MAY!G22 -> 0 | H22: 0
D23: =MAY!D23 -> HOA | E23: =MAY!E23 -> Fixed | G23: =MAY!G23 -> 0 | H23: 0
D24: =MAY!D24 -> Electric | E24: =MAY!E24 -> Variable | G24: =MAY!G24 -> 0 | H24: =G24-F24 -> 0
D25: =MAY!D25 -> Gas | E25: =MAY!E25 -> Fixed | G25: =MAY!G25 -> 0 | H25: 0
D26: =MAY!D26 -> Water & Garbage | E26: =MAY!E26 -> Variable | G26: =MAY!G26 -> 0 | H26: 0
D27: =MAY!D27 -> Internet | E27: =MAY!E27 -> Variable | G27: =MAY!G27 -> 0 | H27: 0
D28: =MAY!D28 -> Personal Property or Other Taxes | E28: =MAY!E28 -> Variable | G28: =MAY!G28 -> 0 | H28: 0
D29: =MAY!D29 -> Phone | E29: =MAY!E29 -> Fixed | G29: =MAY!G29 -> 0 | H29: =G29-F29 -> 0
D30: =MAY!D30 -> Home Furnishings, Repairs | E30: =MAY!E30 -> Variable | G30: =MAY!G30 -> 0 | H30: 0
D31: =MAY!D31 -> 0 | E31: =MAY!E31 -> Variable | G31: =MAY!G31 -> 0 | H31: 0
D32: =MAY!D32 -> 0 | E32: =MAY!E32 -> Variable | G32: =MAY!G32 -> 0 | H32: 0
D33: Subtotal | F33: =SUM(F21:F30) -> 0 | G33: =SUM(G21:G30) -> 0 | H33: =SUM(H21:H30) -> 0
C34: =MAY!C34 -> Transportation | D34: =MAY!D34 -> Car Insurance | E34: =MAY!E34 -> Fixed | G34: =MAY!G34 -> 0 | H34: =G34-F34 -> 0
D35: =MAY!D35 -> Car Oil Changes | E35: =MAY!E35 -> Variable | G35: =MAY!G35 -> 0 | H35: 0
D36: =MAY!D36 -> Car Tires | E36: =MAY!E36 -> Variable | G36: =MAY!G36 -> 0 | H36: 0
D37: =MAY!D37 -> Car Repairs | E37: =MAY!E37 -> Variable | G37: =MAY!G37 -> 0 | H37: 0
D38: =MAY!D38 -> Auto Gas | E38: =MAY!E38 -> Variable | G38: =MAY!G38 -> 0 | H38: =G38-F38 -> 0
D39: =MAY!D39 -> Public Transit / Ride-Share Programs | E39: =MAY!E39 -> Fixed | G39: =MAY!G39 -> 0 | H39: 0
D40: =MAY!D40 -> 0 | E40: =MAY!E40 -> Fixed | G40: =MAY!G40 -> 0 | H40: 0
D41: =MAY!D41 -> 0 | E41: =MAY!E41 -> Fixed | G41: =MAY!G41 -> 0 | H41: 0
D42: Subtotal | F42: =SUM(F34:F40) -> 0 | G42: =SUM(G34:G40) -> 0 | H42: =SUM(H34:H40) -> 0
C43: =MAY!C43 -> Other Debt Payments | D43: =MAY!D43 -> Car Loan | E43: =MAY!E43 -> Fixed | G43: =MAY!G43 -> 0 | H43: =G43-F43 -> 0
D44: =MAY!D44 -> Credit Card #1 | E44: =MAY!E44 -> Variable | G44: =MAY!G44 -> 0 | H44: 0
D45: =MAY!D45 -> Credit Card #2 | E45: =MAY!E45 -> Variable | G45: =MAY!G45 -> 0 | H45: 0
D46: =MAY!D46 -> Credit Card #3 | E46: =MAY!E46 -> Variable | G46: =MAY!G46 -> 0 | H46: =G46-F46 -> 0
D47: =MAY!D47 -> 0 | E47: =MAY!E47 -> Fixed | G47: =MAY!G47 -> 0 | H47: 0
D48: =MAY!D48 -> 0 | E48: =MAY!E48 -> Fixed | G48: =MAY!G48 -> 0 | H48: 0
D49: =MAY!D49 -> 0 | E49: =MAY!E49 -> Fixed | G49: =MAY!G49 -> 0 | H49: 0
D50: Subtotal | F50: =SUM(F43:F47) -> 0 | G50: =SUM(G43:G47) -> 0 | H50: =SUM(H43:H47) -> 0
C51: =MAY!C51 -> Family Care | D51: =MAY!D51 -> Medical Insurance | E51: =MAY!E51 -> Variable | G51: =MAY!G51 -> 0 | H51: =G51-F51 -> 0
D52: =MAY!D52 -> Medical CoPays | E52: =MAY!E52 -> Variable | G52: =MAY!G52 -> 0 | H52: 0
D53: =MAY!D53 -> Medical Out-of-Pocket | E53: =MAY!E53 -> Variable | G53: =MAY!G53 -> 0 | H53: 0
D54: =MAY!D54 -> Dental | E54: =MAY!E54 -> Variable | G54: =MAY!G54 -> 0 | H54: 0
D55: =MAY!D55 -> Groceries | E55: =MAY!E55 -> Variable | G55: =MAY!G55 -> 0 | H55: 0
D56: =MAY!D56 -> Prescriptions | E56: =MAY!E56 -> Variable | G56: =MAY!G56 -> 0 | H56: 0
D57: =MAY!D57 -> Vitamins and Gummies | E57: =MAY!E57 -> Variable | G57: =MAY!G57 -> 0 | H57: =G57-F57 -> 0
D58: =MAY!D58 -> Clothing, shoes, hats, etc | E58: =MAY!E58 -> Variable | G58: =MAY!G58 -> 0 | H58: 0
D59: =MAY!D59 -> Personal Care (Haircuts, Pedicures, Etc.) | E59: =MAY!E59 -> Variable | G59: =MAY!G59 -> 0 | H59: 0
D60: =MAY!D60 -> Gym | E60: =MAY!E60 -> Variable | G60: =MAY!G60 -> 0 | H60: 0
D61: =MAY!D61 -> Pets (Food, Vet, Boarding, Etc.) | E61: =MAY!E61 -> Variable | G61: =MAY!G61 -> 0 | H61: 0
D62: =MAY!D62 -> Alchohol | E62: =MAY!E62 -> Variable | G62: =MAY!G62 -> 0 | H62: 0
D63: =MAY!D63 -> 0 | E63: =MAY!E63 -> Variable | G63: =MAY!G63 -> 0 | H63: 0
D64: Subtotal | F64: =SUM(F51:F59) -> 0 | G64: =SUM(G51:G59) -> 0 | H64: =SUM(H51:H59) -> 0
C65: =MAY!C65 -> Entertainment | D65: =MAY!D65 -> Restaurants, Bars, Etc. | E65: =MAY!E65 -> Variable | G65: =MAY!G65 -> 0 | H65: =G65-F65 -> 0
D66: =MAY!D66 -> Travel (Personal) | E66: =MAY!E66 -> Variable | G66: =MAY!G66 -> 0 | H66: 0
D67: =MAY!D67 -> Hobbies, Other Entertainment | E67: =MAY!E67 -> Variable | G67: =MAY!G67 -> 0 | H67: 0
D68: =MAY!D68 -> Work trips food & drink | E68: =MAY!E68 -> Variable | G68: =MAY!G68 -> 0 | H68: 0
D69: =MAY!D69 -> 0 | E69: =MAY!E69 -> Variable | G69: =MAY!G69 -> 0 | H69: 0
D70: =MAY!D70 -> 0 | E70: =MAY!E70 -> Variable | G70: =MAY!G70 -> 0 | H70: 0
D71: Subtotal | F71: =SUM(F65:F70) -> 0 | G71: =SUM(G65:G70) -> 0 | H71: =SUM(H65:H70) -> 0
C72: =MAY!C72 -> Miscellaneous | D72: =MAY!D72 -> Gifts - Morgan | E72: =MAY!E72 -> Variable | G72: =MAY!G72 -> 0 | H72: =G72-F72 -> 0
D73: =MAY!D73 -> Gifts - Others | E73: =MAY!E73 -> Variable | G73: =MAY!G73 -> 0 | H73: =G73-F73 -> 0
D74: =MAY!D74 -> Donations | E74: =MAY!E74 -> Variable | G74: =MAY!G74 -> 65 | H74: =G74-F74 -> 65
D75: =MAY!D75 -> Tips, Uber, DoorDash, etc | E75: =MAY!E75 -> Variable | G75: =MAY!G75 -> 0 | H75: =G75-F75 -> 0
D76: =MAY!D76 -> Subscriptions (MS Office, Streaming Services, etc.) | E76: =MAY!E76 -> Variable | G76: =MAY!G76 -> 0 | H76: =G76-F76 -> 0
D77: =MAY!D77 -> Cash Expenses | E77: =MAY!E77 -> Variable | G77: =MAY!G77 -> 0 | H77: =G77-F77 -> 0
D78: =MAY!D78 -> Pension Contribution | E78: =MAY!E78 -> Variable | G78: =MAY!G78 -> 0 | H78: 0
D79: =MAY!D79 -> Contributory Insurance | E79: =MAY!E79 -> Variable | G79: =MAY!G79 -> 0 | H79: 0
D80: =MAY!D80 -> Other Miscellaneous | E80: =MAY!E80 -> Variable | G80: =MAY!G80 -> 0 | H80: 0
D81: =MAY!D81 -> 0 | E81: =MAY!E81 -> Variable | G81: =MAY!G81 -> 0 | H81: 0
D82: =MAY!D82 -> 0 | E82: =MAY!E82 -> Variable | G82: =MAY!G82 -> 0 | H82: 0
D83: Subtotal | F83: =SUM(F72:F76) -> 0 | G83: =SUM(G72:G76) -> 65 | H83: =SUM(H72:H76) -> 65
C84: TOTAL EXPENSES | F84: =SUM(F83,F71,F64,F50,F42,F33) -> 0 | G84: =SUM(G83,G71,G64,G50,G42,G33) -> 65 | H84: =SUM(H83,H71,H64,H50,H42,H33) -> 65
B86: GOALS | C86: =MAY!C86 -> Savings | D86: =MAY!D86 -> Emergency Funds Safety Net (High Interest Online Savings Acct) | E86: =MAY!E86 -> Fixed | G86: =MAY!G86 -> 120 | H86: =G86-F86 -> 120
D87: =MAY!D87 -> Additional Retirement Savings | E87: =MAY!E87 -> Variable | G87: =MAY!G87 -> 0 | H87: 0
D88: =MAY!D88 -> Short-term (Family visits, credit cards, etc.) | E88: =MAY!E88 -> Variable | G88: =MAY!G88 -> 0 | H88: 0
D89: =MAY!D89 -> Vacations | E89: =MAY!E89 -> Variable | G89: =MAY!G89 -> 0 | H89: =G89-F89 -> 0
D90: =MAY!D90 -> Long-term (House, Moving Exp, Furniture, Food Staples, etc.) | E90: =MAY!E90 -> Variable | G90: =MAY!G90 -> 0 | H90: 0
D91: =MAY!D91 -> Long-term Car | E91: =MAY!E91 -> Variable | G91: =MAY!G91 -> 0 | H91: 0
D92: =MAY!D92 -> 0 | E92: =MAY!E92 -> Variable | G92: =MAY!G92 -> 0 | H92: 0
D93: =MAY!D93 -> 0 | E93: =MAY!E93 -> Variable | G93: =MAY!G93 -> 0 | H93: 0
C94: TOTAL SAVINGS | F94: =SUM(F86:F88) -> 0 | G94: =SUM(G86:G91) -> 120 | H94: =SUM(H86:H91) -> 120
B96: PROJECTED | C96: MONEY LEFT TO SPEND THIS MONTH | F96: =F19-F84-F94 -> 0 | G96: =G19-G84-G94 -> 6583.666667 | H96: =F96-G96 -> -6583.666667
C97: EXTRA MONEY SAVED SO FAR THIS YEAR | F97: =F96+MAY!F97 -> 6768.666667 | G97: =G96+MAY!G97 -> 39502 | H97: =F97-G97 -> -32733.33333

Sheet JUL
B2: MONTHLY BUDGET
C4: CATEGORY | D4: DESCRIPTION | E4: TYPE | F4: ACTUAL | G4: BUDGET | H4: OVER / (UNDER)
B5: INCOME | C5: =JUN!C5 -> Paycheck (Every 2-weeks, After-Tax) | D5: =JUN!D5 -> New Jersey (See Savings Goal tab for details) | E5: =JUN!E5 -> Fixed | G5: =JUN!G5 -> 6768.666667 | H5: =G5-F5 -> 6768.666667
D6: =JUN!D6 -> Resilent Minds | E6: =JUN!E6 -> Variable | G6: =JUN!G6 -> 0 | H6: =G6-F6 -> 0
D7: =JUN!D7 -> 0 | E7: =JUN!E7 -> 0 | G7: =JUN!G7 -> 0 | H7: =G7-F7 -> 0
D8: =JUN!D8 -> 0 | E8: =JUN!E8 -> 0 | G8: =JUN!G8 -> 0 | H8: 0
D9: =JUN!D9 -> 0 | E9: =JUN!E9 -> 0 | G9: =JUN!G9 -> 0 | H9: =G9-F9 -> 0
D10: Subtotal | F10: =SUM(F5:F9) -> 0 | G10: =SUM(G5:G9) -> 6768.666667 | H10: =SUM(H5:H9) -> 6768.666667
C11: =JUN!C11 -> Additional Income | D11: =JUN!D11 -> Bonuses, Tips, Commissions, Miscellaneous Sales, Etc. | E11: =JUN!E11 -> Variable | G11: =JUN!G11 -> 0 | H11: =G11-F11 -> 0
D12: =JUN!D12 -> Savings Interest | E12: =JUN!E12 -> Fixed | G12: =JUN!G12 -> 0 | H12: =G12-F12 -> 0
D13: =JUN!D13 -> Credit Card Cash Back | E13: =JUN!E13 -> Variable | G13: =JUN!G13 -> 0 | H13: =G13-F13 -> 0
D14: =JUN!D14 -> Credit Card Cash Back | E14: =JUN!E14 -> Variable | G14: =JUN!G14 -> 0 | H14: =G14-F14 -> 0
D15: =JUN!D15 -> Credit Card Cash Back | E15: =JUN!E15 -> Variable | G15: =JUN!G15 -> 0 | H15: 0
D16: =JUN!D16 -> 0 | E16: =JUN!E16 -> Variable | G16: =JUN!G16 -> 0 | H16: 0
D17: =JUN!D17 -> 0 | E17: =JUN!E17 -> Variable | G17: =JUN!G17 -> 0 | H17: 0
D18: Subtotal | F18: =SUM(F11:F13) -> 0 | G18: =SUM(G11:G13) -> 0 | H18: =SUM(H11:H13) -> 0
C19: TOTAL INCOME | F19: =SUM(F18,F10) -> 0 | G19: =SUM(G18,G10) -> 6768.666667 | H19: =SUM(H18,H10) -> 6768.666667
B21: EXPENSES | C21: =JUN!C21 -> Home | D21: =JUN!D21 -> Rent/Mortgage | E21: =JUN!E21 -> Fixed | G21: =JUN!G21 -> 0 | H21: =G21-F21 -> 0
D22: =JUN!D22 -> Home Insurance | E22: =JUN!E22 -> Fixed | G22: =JUN!G22 -> 0 | H22: 0
D23: =JUN!D23 -> HOA | E23: =JUN!E23 -> Fixed | G23: =JUN!G23 -> 0 | H23: 0
D24: =JUN!D24 -> Electric | E24: =JUN!E24 -> Variable | G24: =JUN!G24 -> 0 | H24: =G24-F24 -> 0
D25: =JUN!D25 -> Gas | E25: =JUN!E25 -> Fixed | G25: =JUN!G25 -> 0 | H25: 0
D26: =JUN!D26 -> Water & Garbage | E26: =JUN!E26 -> Variable | G26: =JUN!G26 -> 0 | H26: 0
D27: =JUN!D27 -> Internet | E27: =JUN!E27 -> Variable | G27: =JUN!G27 -> 0 | H27: 0
D28: =JUN!D28 -> Personal Property or Other Taxes | E28: =JUN!E28 -> Variable | G28: =JUN!G28 -> 0 | H28: 0
D29: =JUN!D29 -> Phone | E29: =JUN!E29 -> Fixed | G29: =JUN!G29 -> 0 | H29: 0
D30: =JUN!D30 -> Home Furnishings, Repairs | E30: =JUN!E30 -> Variable | G30: =JUN!G30 -> 0 | H30: =G30-F30 -> 0
D31: =JUN!D31 -> 0 | E31: =JUN!E31 -> Variable | G31: =JUN!G31 -> 0 | H31: 0
D32: =JUN!D32 -> 0 | E32: =JUN!E32 -> Variable | G32: =JUN!G32 -> 0 | H32: 0
D33: Subtotal | F33: =SUM(F21:F30) -> 0 | G33: =SUM(G21:G30) -> 0 | H33: =SUM(H21:H30) -> 0
C34: =JUN!C34 -> Transportation | D34: =JUN!D34 -> Car Insurance | E34: =JUN!E34 -> Fixed | G34: =JUN!G34 -> 0 | H34: =G34-F34 -> 0
D35: =JUN!D35 -> Car Oil Changes | E35: =JUN!E35 -> Variable | G35: =JUN!G35 -> 0 | H35: 0
D36: =JUN!D36 -> Car Tires | E36: =JUN!E36 -> Variable | G36: =JUN!G36 -> 0 | H36: 0
D37: =JUN!D37 -> Car Repairs | E37: =JUN!E37 -> Variable | G37: =JUN!G37 -> 0 | H37: 0
D38: =JUN!D38 -> Auto Gas | E38: =JUN!E38 -> Variable | G38: =JUN!G38 -> 0 | H38: =G38-F38 -> 0
D39: =JUN!D39 -> Public Transit / Ride-Share Programs | E39: =JUN!E39 -> Fixed | G39: =JUN!G39 -> 0 | H39: 0
D40: =JUN!D40 -> 0 | E40: =JUN!E40 -> Fixed | G40: =JUN!G40 -> 0 | H40: 0
D41: =JUN!D41 -> 0 | E41: =JUN!E41 -> Fixed | G41: =JUN!G41 -> 0 | H41: 0
D42: Subtotal | F42: =SUM(F34:F40) -> 0 | G42: =SUM(G34:G40) -> 0 | H42: =SUM(H34:H40) -> 0
C43: =JUN!C43 -> Other Debt Payments | D43: =JUN!D43 -> Car Loan | E43: =JUN!E43 -> Fixed | G43: =JUN!G43 -> 0 | H43: =G43-F43 -> 0
D44: =JUN!D44 -> Credit Card #1 | E44: =JUN!E44 -> Variable | G44: =JUN!G44 -> 0 | H44: 0
D45: =JUN!D45 -> Credit Card #2 | E45: =JUN!E45 -> Variable | G45: =JUN!G45 -> 0 | H45: 0
D46: =JUN!D46 -> Credit Card #3 | E46: =JUN!E46 -> Variable | G46: =JUN!G46 -> 0 | H46: =G46-F46 -> 0
D47: =JUN!D47 -> 0 | E47: =JUN!E47 -> Fixed | G47: =JUN!G47 -> 0 | H47: 0
D48: =JUN!D48 -> 0 | E48: =JUN!E48 -> Fixed | G48: =JUN!G48 -> 0 | H48: 0
D49: =JUN!D49 -> 0 | E49: =JUN!E49 -> Fixed | G49: =JUN!G49 -> 0 | H49: 0
D50: Subtotal | F50: =SUM(F43:F47) -> 0 | G50: =SUM(G43:G47) -> 0 | H50: =SUM(H43:H47) -> 0
C51: =JUN!C51 -> Family Care | D51: =JUN!D51 -> Medical Insurance | E51: =JUN!E51 -> Variable | G51: =JUN!G51 -> 0 | H51: =G51-F51 -> 0
D52: =JUN!D52 -> Medical CoPays | E52: =JUN!E52 -> Variable | G52: =JUN!G52 -> 0 | H52: 0
D53: =JUN!D53 -> Medical Out-of-Pocket | E53: =JUN!E53 -> Variable | G53: =JUN!G53 -> 0 | H53: 0
D54: =JUN!D54 -> Dental | E54: =JUN!E54 -> Variable | G54: =JUN!G54 -> 0 | H54: 0
D55: =JUN!D55 -> Groceries | E55: =JUN!E55 -> Variable | G55: =JUN!G55 -> 0 | H55: 0
D56: =JUN!D56 -> Prescriptions | E56: =JUN!E56 -> Variable | G56: =JUN!G56 -> 0 | H56: =G56-F56 -> 0
D57: =JUN!D57 -> Vitamins and Gummies | E57: =JUN!E57 -> Variable | G57: =JUN!G57 -> 0 | H57: 0
D58: =JUN!D58 -> Clothing, shoes, hats, etc | E58: =JUN!E58 -> Variable | G58: =JUN!G58 -> 0 | H58: 0
D59: =JUN!D59 -> Personal Care (Haircuts, Pedicures, Etc.) | E59: =JUN!E59 -> Variable | G59: =JUN!G59 -> 0 | H59: 0
D60: =JUN!D60 -> Gym | E60: =JUN!E60 -> Variable | G60: =JUN!G60 -> 0 | H60: 0
D61: =JUN!D61 -> Pets (Food, Vet, Boarding, Etc.) | E61: =JUN!E61 -> Variable | G61: =JUN!G61 -> 0 | H61: 0
D62: =JUN!D62 -> Alchohol | E62: =JUN!E62 -> Variable | G62: =JUN!G62 -> 0 | H62: 0
D63: =JUN!D63 -> 0 | E63: =JUN!E63 -> Variable | G63: =JUN!G63 -> 0 | H63: 0
D64: Subtotal | F64: =SUM(F51:F59) -> 0 | G64: =SUM(G51:G59) -> 0 | H64: =SUM(H51:H59) -> 0
C65: =JUN!C65 -> Entertainment | D65: =JUN!D65 -> Restaurants, Bars, Etc. | E65: =JUN!E65 -> Variable | G65: =JUN!G65 -> 0 | H65: =G65-F65 -> 0
D66: =JUN!D66 -> Travel (Personal) | E66: =JUN!E66 -> Variable | G66: =JUN!G66 -> 0 | H66: 0
D67: =JUN!D67 -> Hobbies, Other Entertainment | E67: =JUN!E67 -> Variable | G67: =JUN!G67 -> 0 | H67: 0
D68: =JUN!D68 -> Work trips food & drink | E68: =JUN!E68 -> Variable | G68: =JUN!G68 -> 0 | H68: =G68-F68 -> 0
D69: =JUN!D69 -> 0 | E69: =JUN!E69 -> Variable | G69: =JUN!G69 -> 0 | H69: 0
D70: =JUN!D70 -> 0 | E70: =JUN!E70 -> Variable | G70: =JUN!G70 -> 0 | H70: 0
D71: Subtotal | F71: =SUM(F65:F70) -> 0 | G71: =SUM(G65:G70) -> 0 | H71: =SUM(H65:H70) -> 0
C72: =JUN!C72 -> Miscellaneous | D72: =JUN!D72 -> Gifts - Morgan | E72: =JUN!E72 -> Variable | G72: =JUN!G72 -> 0 | H72: =G72-F72 -> 0
D73: =JUN!D73 -> Gifts - Others | E73: =JUN!E73 -> Variable | G73: =JUN!G73 -> 0 | H73: =G73-F73 -> 0
D74: =JUN!D74 -> Donations | E74: =JUN!E74 -> Variable | G74: =JUN!G74 -> 65 | H74: =G74-F74 -> 65
D75: =JUN!D75 -> Tips, Uber, DoorDash, etc | E75: =JUN!E75 -> Variable | G75: =JUN!G75 -> 0 | H75: =G75-F75 -> 0
D76: =JUN!D76 -> Subscriptions (MS Office, Streaming Services, etc.) | E76: =JUN!E76 -> Variable | G76: =JUN!G76 -> 0 | H76: =G76-F76 -> 0
D77: =JUN!D77 -> Cash Expenses | E77: =JUN!E77 -> Variable | G77: =JUN!G77 -> 0 | H77: =G77-F77 -> 0
D78: =JUN!D78 -> Pension Contribution | E78: =JUN!E78 -> Variable | G78: =JUN!G78 -> 0 | H78: 0
D79: =JUN!D79 -> Contributory Insurance | E79: =JUN!E79 -> Variable | G79: =JUN!G79 -> 0 | H79: 0
D80: =JUN!D80 -> Other Miscellaneous | E80: =JUN!E80 -> Variable | G80: =JUN!G80 -> 0 | H80: 0
D81: =JUN!D81 -> 0 | E81: =JUN!E81 -> Variable | G81: =JUN!G81 -> 0 | H81: 0
D82: =JUN!D82 -> 0 | E82: =JUN!E82 -> Variable | G82: =JUN!G82 -> 0 | H82: 0
D83: Subtotal | F83: =SUM(F72:F76) -> 0 | G83: =SUM(G72:G76) -> 65 | H83: =SUM(H72:H76) -> 65
C84: TOTAL EXPENSES | F84: =SUM(F83,F71,F64,F50,F42,F33) -> 0 | G84: =SUM(G83,G71,G64,G50,G42,G33) -> 65 | H84: =SUM(H83,H71,H64,H50,H42,H33) -> 65
B86: GOALS | C86: =JUN!C86 -> Savings | D86: =JUN!D86 -> Emergency Funds Safety Net (High Interest Online Savings Acct) | E86: =JUN!E86 -> Fixed | G86: =JUN!G86 -> 120 | H86: =G86-F86 -> 120
D87: =JUN!D87 -> Additional Retirement Savings | E87: =JUN!E87 -> Variable | G87: =JUN!G87 -> 0 | H87: 0
D88: =JUN!D88 -> Short-term (Family visits, credit cards, etc.) | E88: =JUN!E88 -> Variable | G88: =JUN!G88 -> 0 | H88: 0
D89: =JUN!D89 -> Vacations | E89: =JUN!E89 -> Variable | G89: =JUN!G89 -> 0 | H89: =G89-F89 -> 0
D90: =JUN!D90 -> Long-term (House, Moving Exp, Furniture, Food Staples, etc.) | E90: =JUN!E90 -> Variable | G90: =JUN!G90 -> 0 | H90: 0
D91: =JUN!D91 -> Long-term Car | E91: =JUN!E91 -> Variable | G91: =JUN!G91 -> 0 | H91: 0
D92: =JUN!D92 -> 0 | E92: =JUN!E92 -> Variable | G92: =JUN!G92 -> 0 | H92: 0
D93: =JUN!D93 -> 0 | E93: =JUN!E93 -> Variable | G93: =JUN!G93 -> 0 | H93: 0
C94: TOTAL SAVINGS | F94: =SUM(F86:F88) -> 0 | G94: =SUM(G86:G91) -> 120 | H94: =SUM(H86:H91) -> 120
B96: PROJECTED | C96: MONEY LEFT TO SPEND THIS MONTH | F96: =F19-F84-F94 -> 0 | G96: =G19-G84-G94 -> 6583.666667 | H96: =F96-G96 -> -6583.666667
C97: EXTRA MONEY SAVED SO FAR THIS YEAR | F97: =F96+JUN!F97 -> 6768.666667 | G97: =G96+JUN!G97 -> 46085.66667 | H97: =F97-G97 -> -39317

Sheet AUG
B2: MONTHLY BUDGET
C4: CATEGORY | D4: DESCRIPTION | E4: TYPE | F4: ACTUAL | G4: BUDGET | H4: OVER / (UNDER)
B5: INCOME | C5: =JUL!C5 -> Paycheck (Every 2-weeks, After-Tax) | D5: =JUL!D5 -> New Jersey (See Savings Goal tab for details) | E5: =JUL!E5 -> Fixed | G5: =JUL!G5 -> 6768.666667 | H5: =G5-F5 -> 6768.666667
D6: =JUL!D6 -> Resilent Minds | E6: =JUL!E6 -> Variable | G6: =JUL!G6 -> 0 | H6: =G6-F6 -> 0
D7: =JUL!D7 -> 0 | E7: =JUL!E7 -> 0 | G7: =JUL!G7 -> 0 | H7: =G7-F7 -> 0
D8: =JUL!D8 -> 0 | E8: =JUL!E8 -> 0 | G8: =JUL!G8 -> 0 | H8: 0
D9: =JUL!D9 -> 0 | E9: =JUL!E9 -> 0 | G9: =JUL!G9 -> 0 | H9: =G9-F9 -> 0
D10: Subtotal | F10: =SUM(F5:F9) -> 0 | G10: =SUM(G5:G9) -> 6768.666667 | H10: =SUM(H5:H9) -> 6768.666667
C11: =JUL!C11 -> Additional Income | D11: =JUL!D11 -> Bonuses, Tips, Commissions, Miscellaneous Sales, Etc. | E11: =JUL!E11 -> Variable | G11: =JUL!G11 -> 0 | H11: =G11-F11 -> 0
D12: =JUL!D12 -> Savings Interest | E12: =JUL!E12 -> Fixed | G12: =JUL!G12 -> 0 | H12: =G12-F12 -> 0
D13: =JUL!D13 -> Credit Card Cash Back | E13: =JUL!E13 -> Variable | G13: =JUL!G13 -> 0 | H13: =G13-F13 -> 0
D14: =JUL!D14 -> Credit Card Cash Back | E14: =JUL!E14 -> Variable | G14: =JUL!G14 -> 0 | H14: =G14-F14 -> 0
D15: =JUL!D15 -> Credit Card Cash Back | E15: =JUL!E15 -> Variable | G15: =JUL!G15 -> 0 | H15: 0
D16: =JUL!D16 -> 0 | E16: =JUL!E16 -> Variable | G16: =JUL!G16 -> 0 | H16: 0
D17: =JUL!D17 -> 0 | E17: =JUL!E17 -> Variable | G17: =JUL!G17 -> 0 | H17: 0
D18: Subtotal | F18: =SUM(F11:F13) -> 0 | G18: =SUM(G11:G13) -> 0 | H18: =SUM(H11:H13) -> 0
C19: TOTAL INCOME | F19: =SUM(F18,F10) -> 0 | G19: =SUM(G18,G10) -> 6768.666667 | H19: =SUM(H18,H10) -> 6768.666667
B21: EXPENSES | C21: =JUL!C21 -> Home | D21: =JUL!D21 -> Rent/Mortgage | E21: =JUL!E21 -> Fixed | G21: =JUL!G21 -> 0 | H21: =G21-F21 -> 0
D22: =JUL!D22 -> Home Insurance | E22: =JUL!E22 -> Fixed | G22: =JUL!G22 -> 0 | H22: 0
D23: =JUL!D23 -> HOA | E23: =JUL!E23 -> Fixed | G23: =JUL!G23 -> 0 | H23: 0
D24: =JUL!D24 -> Electric | E24: =JUL!E24 -> Variable | G24: =JUL!G24 -> 0 | H24: =G24-F24 -> 0
D25: =JUL!D25 -> Gas | E25: =JUL!E25 -> Fixed | G25: =JUL!G25 -> 0 | H25: 0
D26: =JUL!D26 -> Water & Garbage | E26: =JUL!E26 -> Variable | G26: =JUL!G26 -> 0 | H26: 0
D27: =JUL!D27 -> Internet | E27: =JUL!E27 -> Variable | G27: =JUL!G27 -> 0 | H27: 0
D28: =JUL!D28 -> Personal Property or Other Taxes | E28: =JUL!E28 -> Variable | G28: =JUL!G28 -> 0 | H28: =G28-F28 -> 0
D29: =JUL!D29 -> Phone | E29: =JUL!E29 -> Fixed | G29: =JUL!G29 -> 0 | H29: 0
D30: =JUL!D30 -> Home Furnishings, Repairs | E30: =JUL!E30 -> Variable | G30: =JUL!G30 -> 0 | H30: 0
D31: =JUL!D31 -> 0 | E31: =JUL!E31 -> Variable | G31: =JUL!G31 -> 0 | H31: 0
D32: =JUL!D32 -> 0 | E32: =JUL!E32 -> Variable | G32: =JUL!G32 -> 0 | H32: 0
D33: Subtotal | F33: =SUM(F21:F30) -> 0 | G33: =SUM(G21:G30) -> 0 | H33: =SUM(H21:H30) -> 0
C34: =JUL!C34 -> Transportation | D34: =JUL!D34 -> Car Insurance | E34: =JUL!E34 -> Fixed | G34: =JUL!G34 -> 0 | H34: =G34-F34 -> 0
D35: =JUL!D35 -> Car Oil Changes | E35: =JUL!E35 -> Variable | G35: =JUL!G35 -> 0 | H35: 0
D36: =JUL!D36 -> Car Tires | E36: =JUL!E36 -> Variable | G36: =JUL!G36 -> 0 | H36: 0
D37: =JUL!D37 -> Car Repairs | E37: =JUL!E37 -> Variable | G37: =JUL!G37 -> 0 | H37: 0
D38: =JUL!D38 -> Auto Gas | E38: =JUL!E38 -> Variable | G38: =JUL!G38 -> 0 | H38: =G38-F38 -> 0
D39: =JUL!D39 -> Public Transit / Ride-Share Programs | E39: =JUL!E39 -> Fixed | G39: =JUL!G39 -> 0 | H39: 0
D40: =JUL!D40 -> 0 | E40: =JUL!E40 -> Fixed | G40: =JUL!G40 -> 0 | H40: 0
D41: =JUL!D41 -> 0 | E41: =JUL!E41 -> Fixed | G41: =JUL!G41 -> 0 | H41: 0
D42: Subtotal | F42: =SUM(F34:F40) -> 0 | G42: =SUM(G34:G40) -> 0 | H42: =SUM(H34:H40) -> 0
C43: =JUL!C43 -> Other Debt Payments | D43: =JUL!D43 -> Car Loan | E43: =JUL!E43 -> Fixed | G43: =JUL!G43 -> 0 | H43: =G43-F43 -> 0
D44: =JUL!D44 -> Credit Card #1 | E44: =JUL!E44 -> Variable | G44: =JUL!G44 -> 0 | H44: 0
D45: =JUL!D45 -> Credit Card #2 | E45: =JUL!E45 -> Variable | G45: =JUL!G45 -> 0 | H45: 0
D46: =JUL!D46 -> Credit Card #3 | E46: =JUL!E46 -> Variable | G46: =JUL!G46 -> 0 | H46: 0
D47: =JUL!D47 -> 0 | E47: =JUL!E47 -> Fixed | G47: =JUL!G47 -> 0 | H47: =G47-F47 -> 0
D48: =JUL!D48 -> 0 | E48: =JUL!E48 -> Fixed | G48: =JUL!G48 -> 0 | H48: 0
D49: =JUL!D49 -> 0 | E49: =JUL!E49 -> Fixed | G49: =JUL!G49 -> 0 | H49: 0
D50: Subtotal | F50: =SUM(F43:F47) -> 0 | G50: =SUM(G43:G47) -> 0 | H50: =SUM(H43:H47) -> 0
C51: =JUL!C51 -> Family Care | D51: =JUL!D51 -> Medical Insurance | E51: =JUL!E51 -> Variable | G51: =JUL!G51 -> 0 | H51: =G51-F51 -> 0
D52: =JUL!D52 -> Medical CoPays | E52: =JUL!E52 -> Variable | G52: =JUL!G52 -> 0 | H52: 0
D53: =JUL!D53 -> Medical Out-of-Pocket | E53: =JUL!E53 -> Variable | G53: =JUL!G53 -> 0 | H53: 0
D54: =JUL!D54 -> Dental | E54: =JUL!E54 -> Variable | G54: =JUL!G54 -> 0 | H54: 0
D55: =JUL!D55 -> Groceries | E55: =JUL!E55 -> Variable | G55: =JUL!G55 -> 0 | H55: 0
D56: =JUL!D56 -> Prescriptions | E56: =JUL!E56 -> Variable | G56: =JUL!G56 -> 0 | H56: =G56-F56 -> 0
D57: =JUL!D57 -> Vitamins and Gummies | E57: =JUL!E57 -> Variable | G57: =JUL!G57 -> 0 | H57: 0
D58: =JUL!D58 -> Clothing, shoes, hats, etc | E58: =JUL!E58 -> Variable | G58: =JUL!G58 -> 0 | H58: 0
D59: =JUL!D59 -> Personal Care (Haircuts, Pedicures, Etc.) | E59: =JUL!E59 -> Variable | G59: =JUL!G59 -> 0 | H59: 0
D60: =JUL!D60 -> Gym | E60: =JUL!E60 -> Variable | G60: =JUL!G60 -> 0 | H60: 0
D61: =JUL!D61 -> Pets (Food, Vet, Boarding, Etc.) | E61: =JUL!E61 -> Variable | G61: =JUL!G61 -> 0 | H61: 0
D62: =JUL!D62 -> Alchohol | E62: =JUL!E62 -> Variable | G62: =JUL!G62 -> 0 | H62: 0
D63: =JUL!D63 -> 0 | E63: =JUL!E63 -> Variable | G63: =JUL!G63 -> 0 | H63: =G63-F63 -> 0
D64: Subtotal | F64: =SUM(F51:F59) -> 0 | G64: =SUM(G51:G59) -> 0 | H64: =SUM(H51:H59) -> 0
C65: =JUL!C65 -> Entertainment | D65: =JUL!D65 -> Restaurants, Bars, Etc. | E65: =JUL!E65 -> Variable | G65: =JUL!G65 -> 0 | H65: =G65-F65 -> 0
D66: =JUL!D66 -> Travel (Personal) | E66: =JUL!E66 -> Variable | G66: =JUL!G66 -> 0 | H66: 0
D67: =JUL!D67 -> Hobbies, Other Entertainment | E67: =JUL!E67 -> Variable | G67: =JUL!G67 -> 0 | H67: 0
D68: =JUL!D68 -> Work trips food & drink | E68: =JUL!E68 -> Variable | G68: =JUL!G68 -> 0 | H68: =G68-F68 -> 0
D69: =JUL!D69 -> 0 | E69: =JUL!E69 -> Variable | G69: =JUL!G69 -> 0 | H69: 0
D70: =JUL!D70 -> 0 | E70: =JUL!E70 -> Variable | G70: =JUL!G70 -> 0 | H70: 0
D71: Subtotal | F71: =SUM(F65:F70) -> 0 | G71: =SUM(G65:G70) -> 0 | H71: =SUM(H65:H70) -> 0
C72: =JUL!C72 -> Miscellaneous | D72: =JUL!D72 -> Gifts - Morgan | E72: =JUL!E72 -> Variable | G72: =JUL!G72 -> 0 | H72: =G72-F72 -> 0
D73: =JUL!D73 -> Gifts - Others | E73: =JUL!E73 -> Variable | G73: =JUL!G73 -> 0 | H73: =G73-F73 -> 0
D74: =JUL!D74 -> Donations | E74: =JUL!E74 -> Variable | G74: =JUL!G74 -> 65 | H74: =G74-F74 -> 65
D75: =JUL!D75 -> Tips, Uber, DoorDash, etc | E75: =JUL!E75 -> Variable | G75: =JUL!G75 -> 0 | H75: =G75-F75 -> 0
D76: =JUL!D76 -> Subscriptions (MS Office, Streaming Services, etc.) | E76: =JUL!E76 -> Variable | G76: =JUL!G76 -> 0 | H76: =G76-F76 -> 0
D77: =JUL!D77 -> Cash Expenses | E77: =JUL!E77 -> Variable | G77: =JUL!G77 -> 0 | H77: =G77-F77 -> 0
D78: =JUL!D78 -> Pension Contribution | E78: =JUL!E78 -> Variable | G78: =JUL!G78 -> 0 | H78: 0
D79: =JUL!D79 -> Contributory Insurance | E79: =JUL!E79 -> Variable | G79: =JUL!G79 -> 0 | H79: 0
D80: =JUL!D80 -> Other Miscellaneous | E80: =JUL!E80 -> Variable | G80: =JUL!G80 -> 0 | H80: 0
D81: =JUL!D81 -> 0 | E81: =JUL!E81 -> Variable | G81: =JUL!G81 -> 0 | H81: 0
D82: =JUL!D82 -> 0 | E82: =JUL!E82 -> Variable | G82: =JUL!G82 -> 0 | H82: 0
D83: Subtotal | F83: =SUM(F72:F76) -> 0 | G83: =SUM(G72:G76) -> 65 | H83: =SUM(H72:H76) -> 65
C84: TOTAL EXPENSES | F84: =SUM(F83,F71,F64,F50,F42,F33) -> 0 | G84: =SUM(G83,G71,G64,G50,G42,G33) -> 65 | H84: =SUM(H83,H71,H64,H50,H42,H33) -> 65
B86: GOALS | C86: =JUL!C86 -> Savings | D86: =JUL!D86 -> Emergency Funds Safety Net (High Interest Online Savings Acct) | E86: =JUL!E86 -> Fixed | G86: =JUL!G86 -> 120 | H86: =G86-F86 -> 120
D87: =JUL!D87 -> Additional Retirement Savings | E87: =JUL!E87 -> Variable | G87: =JUL!G87 -> 0 | H87: 0
D88: =JUL!D88 -> Short-term (Family visits, credit cards, etc.) | E88: =JUL!E88 -> Variable | G88: =JUL!G88 -> 0 | H88: 0
D89: =JUL!D89 -> Vacations | E89: =JUL!E89 -> Variable | G89: =JUL!G89 -> 0 | H89: 0
D90: =JUL!D90 -> Long-term (House, Moving Exp, Furniture, Food Staples, etc.) | E90: =JUL!E90 -> Variable | G90: =JUL!G90 -> 0 | H90: 0
D91: =JUL!D91 -> Long-term Car | E91: =JUL!E91 -> Variable | G91: =JUL!G91 -> 0 | H91: =G91-F91 -> 0
D92: =JUL!D92 -> 0 | E92: =JUL!E92 -> Variable | G92: =JUL!G92 -> 0 | H92: 0
D93: =JUL!D93 -> 0 | E93: =JUL!E93 -> Variable | G93: =JUL!G93 -> 0 | H93: 0
C94: TOTAL SAVINGS | F94: =SUM(F86:F88) -> 0 | G94: =SUM(G86:G91) -> 120 | H94: =SUM(H86:H91) -> 120
B96: PROJECTED | C96: MONEY LEFT TO SPEND THIS MONTH | F96: =F19-F84-F94 -> 0 | G96: =G19-G84-G94 -> 6583.666667 | H96: =F96-G96 -> -6583.666667
C97: EXTRA MONEY SAVED SO FAR THIS YEAR | F97: =F96+JUL!F97 -> 6768.666667 | G97: =G96+JUL!G97 -> 52669.33333 | H97: =F97-G97 -> -45900.66667

Sheet SEPT
B2: MONTHLY BUDGET
C4: CATEGORY | D4: DESCRIPTION | E4: TYPE | F4: ACTUAL | G4: BUDGET | H4: OVER / (UNDER)
B5: INCOME | C5: =AUG!C5 -> Paycheck (Every 2-weeks, After-Tax) | D5: =AUG!D5 -> New Jersey (See Savings Goal tab for details) | E5: =AUG!E5 -> Fixed | G5: =AUG!G5 -> 6768.666667 | H5: =G5-F5 -> 6768.666667
D6: =AUG!D6 -> Resilent Minds | E6: =AUG!E6 -> Variable | G6: =AUG!G6 -> 0 | H6: =G6-F6 -> 0
D7: =AUG!D7 -> 0 | E7: =AUG!E7 -> 0 | G7: =AUG!G7 -> 0 | H7: =G7-F7 -> 0
D8: =AUG!D8 -> 0 | E8: =AUG!E8 -> 0 | G8: =AUG!G8 -> 0 | H8: 0
D9: =AUG!D9 -> 0 | E9: =AUG!E9 -> 0 | G9: =AUG!G9 -> 0 | H9: =G9-F9 -> 0
D10: Subtotal | F10: =SUM(F5:F9) -> 0 | G10: =SUM(G5:G9) -> 6768.666667 | H10: =SUM(H5:H9) -> 6768.666667
C11: =AUG!C11 -> Additional Income | D11: =AUG!D11 -> Bonuses, Tips, Commissions, Miscellaneous Sales, Etc. | E11: =AUG!E11 -> Variable | G11: =AUG!G11 -> 0 | H11: =G11-F11 -> 0
D12: =AUG!D12 -> Savings Interest | E12: =AUG!E12 -> Fixed | G12: =AUG!G12 -> 0 | H12: =G12-F12 -> 0
D13: =AUG!D13 -> Credit Card Cash Back | E13: =AUG!E13 -> Variable | G13: =AUG!G13 -> 0 | H13: =G13-F13 -> 0
D14: =AUG!D14 -> Credit Card Cash Back | E14: =AUG!E14 -> Variable | G14: =AUG!G14 -> 0 | H14: =G14-F14 -> 0
D15: =AUG!D15 -> Credit Card Cash Back | E15: =AUG!E15 -> Variable | G15: =AUG!G15 -> 0 | H15: 0
D16: =AUG!D16 -> 0 | E16: =AUG!E16 -> Variable | G16: =AUG!G16 -> 0 | H16: 0
D17: =AUG!D17 -> 0 | E17: =AUG!E17 -> Variable | G17: =AUG!G17 -> 0 | H17: 0
D18: Subtotal | F18: =SUM(F11:F13) -> 0 | G18: =SUM(G11:G13) -> 0 | H18: =SUM(H11:H13) -> 0
C19: TOTAL INCOME | F19: =SUM(F18,F10) -> 0 | G19: =SUM(G18,G10) -> 6768.666667 | H19: =SUM(H18,H10) -> 6768.666667
B21: EXPENSES | C21: =AUG!C21 -> Home | D21: =AUG!D21 -> Rent/Mortgage | E21: =AUG!E21 -> Fixed | G21: =AUG!G21 -> 0 | H21: =G21-F21 -> 0
D22: =AUG!D22 -> Home Insurance | E22: =AUG!E22 -> Fixed | G22: =AUG!G22 -> 0 | H22: 0
D23: =AUG!D23 -> HOA | E23: =AUG!E23 -> Fixed | G23: =AUG!G23 -> 0 | H23: 0
D24: =AUG!D24 -> Electric | E24: =AUG!E24 -> Variable | G24: =AUG!G24 -> 0 | H24: =G24-F24 -> 0
D25: =AUG!D25 -> Gas | E25: =AUG!E25 -> Fixed | G25: =AUG!G25 -> 0 | H25: 0
D26: =AUG!D26 -> Water & Garbage | E26: =AUG!E26 -> Variable | G26: =AUG!G26 -> 0 | H26: 0
D27: =AUG!D27 -> Internet | E27: =AUG!E27 -> Variable | G27: =AUG!G27 -> 0 | H27: 0
D28: =AUG!D28 -> Personal Property or Other Taxes | E28: =AUG!E28 -> Variable | G28: =AUG!G28 -> 0 | H28: 0
D29: =AUG!D29 -> Phone | E29: =AUG!E29 -> Fixed | G29: =AUG!G29 -> 0 | H29: =G29-F29 -> 0
D30: =AUG!D30 -> Home Furnishings, Repairs | E30: =AUG!E30 -> Variable | G30: =AUG!G30 -> 0 | H30: 0
D31: =AUG!D31 -> 0 | E31: =AUG!E31 -> Variable | G31: =AUG!G31 -> 0 | H31: 0
D32: =AUG!D32 -> 0 | E32: =AUG!E32 -> Variable | G32: =AUG!G32 -> 0 | H32: 0
D33: Subtotal | F33: =SUM(F21:F30) -> 0 | G33: =SUM(G21:G30) -> 0 | H33: =SUM(H21:H30) -> 0
C34: =AUG!C34 -> Transportation | D34: =AUG!D34 -> Car Insurance | E34: =AUG!E34 -> Fixed | G34: =AUG!G34 -> 0 | H34: =G34-F34 -> 0
D35: =AUG!D35 -> Car Oil Changes | E35: =AUG!E35 -> Variable | G35: =AUG!G35 -> 0 | H35: 0
D36: =AUG!D36 -> Car Tires | E36: =AUG!E36 -> Variable | G36: =AUG!G36 -> 0 | H36: 0
D37: =AUG!D37 -> Car Repairs | E37: =AUG!E37 -> Variable | G37: =AUG!G37 -> 0 | H37: 0
D38: =AUG!D38 -> Auto Gas | E38: =AUG!E38 -> Variable | G38: =AUG!G38 -> 0 | H38: =G38-F38 -> 0
D39: =AUG!D39 -> Public Transit / Ride-Share Programs | E39: =AUG!E39 -> Fixed | G39: =AUG!G39 -> 0 | H39: 0
D40: =AUG!D40 -> 0 | E40: =AUG!E40 -> Fixed | G40: =AUG!G40 -> 0 | H40: 0
D41: =AUG!D41 -> 0 | E41: =AUG!E41 -> Fixed | G41: =AUG!G41 -> 0 | H41: 0
D42: Subtotal | F42: =SUM(F34:F40) -> 0 | G42: =SUM(G34:G40) -> 0 | H42: =SUM(H34:H40) -> 0
C43: =AUG!C43 -> Other Debt Payments | D43: =AUG!D43 -> Car Loan | E43: =AUG!E43 -> Fixed | G43: =AUG!G43 -> 0 | H43: =G43-F43 -> 0
D44: =AUG!D44 -> Credit Card #1 | E44: =AUG!E44 -> Variable | G44: =AUG!G44 -> 0 | H44: 0
D45: =AUG!D45 -> Credit Card #2 | E45: =AUG!E45 -> Variable | G45: =AUG!G45 -> 0 | H45: 0
D46: =AUG!D46 -> Credit Card #3 | E46: =AUG!E46 -> Variable | G46: =AUG!G46 -> 0 | H46: 0
D47: =AUG!D47 -> 0 | E47: =AUG!E47 -> Fixed | G47: =AUG!G47 -> 0 | H47: =G47-F47 -> 0
D48: =AUG!D48 -> 0 | E48: =AUG!E48 -> Fixed | G48: =AUG!G48 -> 0 | H48: 0
D49: =AUG!D49 -> 0 | E49: =AUG!E49 -> Fixed | G49: =AUG!G49 -> 0 | H49: 0
D50: Subtotal | F50: =SUM(F43:F47) -> 0 | G50: =SUM(G43:G47) -> 0 | H50: =SUM(H43:H47) -> 0
C51: =AUG!C51 -> Family Care | D51: =AUG!D51 -> Medical Insurance | E51: =AUG!E51 -> Variable | G51: =AUG!G51 -> 0 | H51: =G51-F51 -> 0
D52: =AUG!D52 -> Medical CoPays | E52: =AUG!E52 -> Variable | G52: =AUG!G52 -> 0 | H52: 0
D53: =AUG!D53 -> Medical Out-of-Pocket | E53: =AUG!E53 -> Variable | G53: =AUG!G53 -> 0 | H53: 0
D54: =AUG!D54 -> Dental | E54: =AUG!E54 -> Variable | G54: =AUG!G54 -> 0 | H54: =G54-F54 -> 0
D55: =AUG!D55 -> Groceries | E55: =AUG!E55 -> Variable | G55: =AUG!G55 -> 0 | H55: 0
D56: =AUG!D56 -> Prescriptions | E56: =AUG!E56 -> Variable | G56: =AUG!G56 -> 0 | H56: 0
D57: =AUG!D57 -> Vitamins and Gummies | E57: =AUG!E57 -> Variable | G57: =AUG!G57 -> 0 | H57: 0
D58: =AUG!D58 -> Clothing, shoes, hats, etc | E58: =AUG!E58 -> Variable | G58: =AUG!G58 -> 0 | H58: =G58-F58 -> 0
D59: =AUG!D59 -> Personal Care (Haircuts, Pedicures, Etc.) | E59: =AUG!E59 -> Variable | G59: =AUG!G59 -> 0 | H59: 0
D60: =AUG!D60 -> Gym | E60: =AUG!E60 -> Variable | G60: =AUG!G60 -> 0 | H60: 0
D61: =AUG!D61 -> Pets (Food, Vet, Boarding, Etc.) | E61: =AUG!E61 -> Variable | G61: =AUG!G61 -> 0 | H61: 0
D62: =AUG!D62 -> Alchohol | E62: =AUG!E62 -> Variable | G62: =AUG!G62 -> 0 | H62: 0
D63: =AUG!D63 -> 0 | E63: =AUG!E63 -> Variable | G63: =AUG!G63 -> 0 | H63: 0
D64: Subtotal | F64: =SUM(F51:F59) -> 0 | G64: =SUM(G51:G59) -> 0 | H64: =SUM(H51:H59) -> 0
C65: =AUG!C65 -> Entertainment | D65: =AUG!D65 -> Restaurants, Bars, Etc. | E65: =AUG!E65 -> Variable | G65: =AUG!G65 -> 0 | H65: =G65-F65 -> 0
D66: =AUG!D66 -> Travel (Personal) | E66: =AUG!E66 -> Variable | G66: =AUG!G66 -> 0 | H66: 0
D67: =AUG!D67 -> Hobbies, Other Entertainment | E67: =AUG!E67 -> Variable | G67: =AUG!G67 -> 0 | H67: 0
D68: =AUG!D68 -> Work trips food & drink | E68: =AUG!E68 -> Variable | G68: =AUG!G68 -> 0 | H68: =G68-F68 -> 0
D69: =AUG!D69 -> 0 | E69: =AUG!E69 -> Variable | G69: =AUG!G69 -> 0 | H69: 0
D70: =AUG!D70 -> 0 | E70: =AUG!E70 -> Variable | G70: =AUG!G70 -> 0 | H70: 0
D71: Subtotal | F71: =SUM(F65:F70) -> 0 | G71: =SUM(G65:G70) -> 0 | H71: =SUM(H65:H70) -> 0
C72: =AUG!C72 -> Miscellaneous | D72: =AUG!D72 -> Gifts - Morgan | E72: =AUG!E72 -> Variable | G72: =AUG!G72 -> 0 | H72: =G72-F72 -> 0
D73: =AUG!D73 -> Gifts - Others | E73: =AUG!E73 -> Variable | G73: =AUG!G73 -> 0 | H73: =G73-F73 -> 0
D74: =AUG!D74 -> Donations | E74: =AUG!E74 -> Variable | G74: =AUG!G74 -> 65 | H74: =G74-F74 -> 65
D75: =AUG!D75 -> Tips, Uber, DoorDash, etc | E75: =AUG!E75 -> Variable | G75: =AUG!G75 -> 0 | H75: =G75-F75 -> 0
D76: =AUG!D76 -> Subscriptions (MS Office, Streaming Services, etc.) | E76: =AUG!E76 -> Variable | G76: =AUG!G76 -> 0 | H76: =G76-F76 -> 0
D77: =AUG!D77 -> Cash Expenses | E77: =AUG!E77 -> Variable | G77: =AUG!G77 -> 0 | H77: 0
D78: =AUG!D78 -> Pension Contribution | E78: =AUG!E78 -> Variable | G78: =AUG!G78 -> 0 | H78: 0
D79: =AUG!D79 -> Contributory Insurance | E79: =AUG!E79 -> Variable | G79: =AUG!G79 -> 0 | H79: 0
D80: =AUG!D80 -> Other Miscellaneous | E80: =AUG!E80 -> Variable | G80: =AUG!G80 -> 0 | H80: 0
D81: =AUG!D81 -> 0 | E81: =AUG!E81 -> Variable | G81: =AUG!G81 -> 0 | H81: 0
D82: =AUG!D82 -> 0 | E82: =AUG!E82 -> Variable | G82: =AUG!G82 -> 0 | H82: 0
D83: Subtotal | F83: =SUM(F72:F76) -> 0 | G83: =SUM(G72:G76) -> 65 | H83: =SUM(H72:H76) -> 65
C84: TOTAL EXPENSES | F84: =SUM(F83,F71,F64,F50,F42,F33) -> 0 | G84: =SUM(G83,G71,G64,G50,G42,G33) -> 65 | H84: =SUM(H83,H71,H64,H50,H42,H33) -> 65
B86: GOALS | C86: =AUG!C86 -> Savings | D86: =AUG!D86 -> Emergency Funds Safety Net (High Interest Online Savings Acct) | E86: =AUG!E86 -> Fixed | G86: =AUG!G86 -> 120 | H86: =G86-F86 -> 120
D87: =AUG!D87 -> Additional Retirement Savings | E87: =AUG!E87 -> Variable | G87: =AUG!G87 -> 0 | H87: 0
D88: =AUG!D88 -> Short-term (Family visits, credit cards, etc.) | E88: =AUG!E88 -> Variable | G88: =AUG!G88 -> 0 | H88: 0
D89: =AUG!D89 -> Vacations | E89: =AUG!E89 -> Variable | G89: =AUG!G89 -> 0 | H89: =G89-F89 -> 0
D90: =AUG!D90 -> Long-term (House, Moving Exp, Furniture, Food Staples, etc.) | E90: =AUG!E90 -> Variable | G90: =AUG!G90 -> 0 | H90: 0
D91: =AUG!D91 -> Long-term Car | E91: =AUG!E91 -> Variable | G91: =AUG!G91 -> 0 | H91: 0
D92: =AUG!D92 -> 0 | E92: =AUG!E92 -> Variable | G92: =AUG!G92 -> 0 | H92: 0
D93: =AUG!D93 -> 0 | E93: =AUG!E93 -> Variable | G93: =AUG!G93 -> 0 | H93: 0
C94: TOTAL SAVINGS | F94: =SUM(F86:F88) -> 0 | G94: =SUM(G86:G91) -> 120 | H94: =SUM(H86:H91) -> 120
B96: PROJECTED | C96: MONEY LEFT TO SPEND THIS MONTH | F96: =F19-F84-F94 -> 0 | G96: =G19-G84-G94 -> 6583.666667 | H96: =F96-G96 -> -6583.666667
C97: EXTRA MONEY SAVED SO FAR THIS YEAR | F97: =F96+AUG!F97 -> 6768.666667 | G97: =G96+AUG!G97 -> 59253 | H97: =F97-G97 -> -52484.33333

Sheet OCT
B2: MONTHLY BUDGET
C4: CATEGORY | D4: DESCRIPTION | E4: TYPE | F4: ACTUAL | G4: BUDGET | H4: OVER / (UNDER)
B5: INCOME | C5: =SEPT!C5 -> Paycheck (Every 2-weeks, After-Tax) | D5: =SEPT!D5 -> New Jersey (See Savings Goal tab for details) | E5: =SEPT!E5 -> Fixed | G5: =SEPT!G5 -> 6768.666667 | H5: =G5-F5 -> 6768.666667
D6: =SEPT!D6 -> Resilent Minds | E6: =SEPT!E6 -> Variable | G6: =SEPT!G6 -> 0 | H6: =G6-F6 -> 0
D7: =SEPT!D7 -> 0 | E7: =SEPT!E7 -> 0 | G7: =SEPT!G7 -> 0 | H7: =G7-F7 -> 0
D8: =SEPT!D8 -> 0 | E8: =SEPT!E8 -> 0 | G8: =SEPT!G8 -> 0 | H8: 0
D9: =SEPT!D9 -> 0 | E9: =SEPT!E9 -> 0 | G9: =SEPT!G9 -> 0 | H9: =G9-F9 -> 0
D10: Subtotal | F10: =SUM(F5:F9) -> 0 | G10: =SUM(G5:G9) -> 6768.666667 | H10: =SUM(H5:H9) -> 6768.666667
C11: =SEPT!C11 -> Additional Income | D11: =SEPT!D11 -> Bonuses, Tips, Commissions, Miscellaneous Sales, Etc. | E11: =SEPT!E11 -> Variable | G11: =SEPT!G11 -> 0 | H11: =G11-F11 -> 0
D12: =SEPT!D12 -> Savings Interest | E12: =SEPT!E12 -> Fixed | G12: =SEPT!G12 -> 0 | H12: =G12-F12 -> 0
D13: =SEPT!D13 -> Credit Card Cash Back | E13: =SEPT!E13 -> Variable | G13: =SEPT!G13 -> 0 | H13: =G13-F13 -> 0
D14: =SEPT!D14 -> Credit Card Cash Back | E14: =SEPT!E14 -> Variable | G14: =SEPT!G14 -> 0 | H14: =G14-F14 -> 0
D15: =SEPT!D15 -> Credit Card Cash Back | E15: =SEPT!E15 -> Variable | G15: =SEPT!G15 -> 0 | H15: 0
D16: =SEPT!D16 -> 0 | E16: =SEPT!E16 -> Variable | G16: =SEPT!G16 -> 0 | H16: 0
D17: =SEPT!D17 -> 0 | E17: =SEPT!E17 -> Variable | G17: =SEPT!G17 -> 0 | H17: 0
D18: Subtotal | F18: =SUM(F11:F13) -> 0 | G18: =SUM(G11:G13) -> 0 | H18: =SUM(H11:H13) -> 0
C19: TOTAL INCOME | F19: =SUM(F18,F10) -> 0 | G19: =SUM(G18,G10) -> 6768.666667 | H19: =SUM(H18,H10) -> 6768.666667
B21: EXPENSES | C21: =SEPT!C21 -> Home | D21: =SEPT!D21 -> Rent/Mortgage | E21: =SEPT!E21 -> Fixed | G21: =SEPT!G21 -> 0 | H21: =G21-F21 -> 0
D22: =SEPT!D22 -> Home Insurance | E22: =SEPT!E22 -> Fixed | G22: =SEPT!G22 -> 0 | H22: 0
D23: =SEPT!D23 -> HOA | E23: =SEPT!E23 -> Fixed | G23: =SEPT!G23 -> 0 | H23: 0
D24: =SEPT!D24 -> Electric | E24: =SEPT!E24 -> Variable | G24: =SEPT!G24 -> 0 | H24: =G24-F24 -> 0
D25: =SEPT!D25 -> Gas | E25: =SEPT!E25 -> Fixed | G25: =SEPT!G25 -> 0 | H25: 0
D26: =SEPT!D26 -> Water & Garbage | E26: =SEPT!E26 -> Variable | G26: =SEPT!G26 -> 0 | H26: 0
D27: =SEPT!D27 -> Internet | E27: =SEPT!E27 -> Variable | G27: =SEPT!G27 -> 0 | H27: 0
D28: =SEPT!D28 -> Personal Property or Other Taxes | E28: =SEPT!E28 -> Variable | G28: =SEPT!G28 -> 0 | H28: =G28-F28 -> 0
D29: =SEPT!D29 -> Phone | E29: =SEPT!E29 -> Fixed | G29: =SEPT!G29 -> 0 | H29: 0
D30: =SEPT!D30 -> Home Furnishings, Repairs | E30: =SEPT!E30 -> Variable | G30: =SEPT!G30 -> 0 | H30: 0
D31: =SEPT!D31 -> 0 | E31: =SEPT!E31 -> Variable | G31: =SEPT!G31 -> 0 | H31: 0
D32: =SEPT!D32 -> 0 | E32: =SEPT!E32 -> Variable | G32: =SEPT!G32 -> 0 | H32: 0
D33: Subtotal | F33: =SUM(F21:F30) -> 0 | G33: =SUM(G21:G30) -> 0 | H33: =SUM(H21:H30) -> 0
C34: =SEPT!C34 -> Transportation | D34: =SEPT!D34 -> Car Insurance | E34: =SEPT!E34 -> Fixed | G34: =SEPT!G34 -> 0 | H34: =G34-F34 -> 0
D35: =SEPT!D35 -> Car Oil Changes | E35: =SEPT!E35 -> Variable | G35: =SEPT!G35 -> 0 | H35: 0
D36: =SEPT!D36 -> Car Tires | E36: =SEPT!E36 -> Variable | G36: =SEPT!G36 -> 0 | H36: 0
D37: =SEPT!D37 -> Car Repairs | E37: =SEPT!E37 -> Variable | G37: =SEPT!G37 -> 0 | H37: 0
D38: =SEPT!D38 -> Auto Gas | E38: =SEPT!E38 -> Variable | G38: =SEPT!G38 -> 0 | H38: =G38-F38 -> 0
D39: =SEPT!D39 -> Public Transit / Ride-Share Programs | E39: =SEPT!E39 -> Fixed | G39: =SEPT!G39 -> 0 | H39: 0
D40: =SEPT!D40 -> 0 | E40: =SEPT!E40 -> Fixed | G40: =SEPT!G40 -> 0 | H40: 0
D41: =SEPT!D41 -> 0 | E41: =SEPT!E41 -> Fixed | G41: =SEPT!G41 -> 0 | H41: 0
D42: Subtotal | F42: =SUM(F34:F40) -> 0 | G42: =SUM(G34:G40) -> 0 | H42: =SUM(H34:H40) -> 0
C43: =SEPT!C43 -> Other Debt Payments | D43: =SEPT!D43 -> Car Loan | E43: =SEPT!E43 -> Fixed | G43: =SEPT!G43 -> 0 | H43: =G43-F43 -> 0
D44: =SEPT!D44 -> Credit Card #1 | E44: =SEPT!E44 -> Variable | G44: =SEPT!G44 -> 0 | H44: 0
D45: =SEPT!D45 -> Credit Card #2 | E45: =SEPT!E45 -> Variable | G45: =SEPT!G45 -> 0 | H45: 0
D46: =SEPT!D46 -> Credit Card #3 | E46: =SEPT!E46 -> Variable | G46: =SEPT!G46 -> 0 | H46: 0
D47: =SEPT!D47 -> 0 | E47: =SEPT!E47 -> Fixed | G47: =SEPT!G47 -> 0 | H47: =G47-F47 -> 0
D48: =SEPT!D48 -> 0 | E48: =SEPT!E48 -> Fixed | G48: =SEPT!G48 -> 0 | H48: 0
D49: =SEPT!D49 -> 0 | E49: =SEPT!E49 -> Fixed | G49: =SEPT!G49 -> 0 | H49: 0
D50: Subtotal | F50: =SUM(F43:F47) -> 0 | G50: =SUM(G43:G47) -> 0 | H50: =SUM(H43:H47) -> 0
C51: =SEPT!C51 -> Family Care | D51: =SEPT!D51 -> Medical Insurance | E51: =SEPT!E51 -> Variable | G51: =SEPT!G51 -> 0 | H51: =G51-F51 -> 0
D52: =SEPT!D52 -> Medical CoPays | E52: =SEPT!E52 -> Variable | G52: =SEPT!G52 -> 0 | H52: 0
D53: =SEPT!D53 -> Medical Out-of-Pocket | E53: =SEPT!E53 -> Variable | G53: =SEPT!G53 -> 0 | H53: 0
D54: =SEPT!D54 -> Dental | E54: =SEPT!E54 -> Variable | G54: =SEPT!G54 -> 0 | H54: 0
D55: =SEPT!D55 -> Groceries | E55: =SEPT!E55 -> Variable | G55: =SEPT!G55 -> 0 | H55: =G55-F55 -> 0
D56: =SEPT!D56 -> Prescriptions | E56: =SEPT!E56 -> Variable | G56: =SEPT!G56 -> 0 | H56: 0
D57: =SEPT!D57 -> Vitamins and Gummies | E57: =SEPT!E57 -> Variable | G57: =SEPT!G57 -> 0 | H57: 0
D58: =SEPT!D58 -> Clothing, shoes, hats, etc | E58: =SEPT!E58 -> Variable | G58: =SEPT!G58 -> 0 | H58: 0
D59: =SEPT!D59 -> Personal Care (Haircuts, Pedicures, Etc.) | E59: =SEPT!E59 -> Variable | G59: =SEPT!G59 -> 0 | H59: 0
D60: =SEPT!D60 -> Gym | E60: =SEPT!E60 -> Variable | G60: =SEPT!G60 -> 0 | H60: 0
D61: =SEPT!D61 -> Pets (Food, Vet, Boarding, Etc.) | E61: =SEPT!E61 -> Variable | G61: =SEPT!G61 -> 0 | H61: 0
D62: =SEPT!D62 -> Alchohol | E62: =SEPT!E62 -> Variable | G62: =SEPT!G62 -> 0 | H62: 0
D63: =SEPT!D63 -> 0 | E63: =SEPT!E63 -> Variable | G63: =SEPT!G63 -> 0 | H63: 0
D64: Subtotal | F64: =SUM(F51:F59) -> 0 | G64: =SUM(G51:G59) -> 0 | H64: =SUM(H51:H59) -> 0
C65: =SEPT!C65 -> Entertainment | D65: =SEPT!D65 -> Restaurants, Bars, Etc. | E65: =SEPT!E65 -> Variable | G65: =SEPT!G65 -> 0 | H65: =G65-F65 -> 0
D66: =SEPT!D66 -> Travel (Personal) | E66: =SEPT!E66 -> Variable | G66: =SEPT!G66 -> 0 | H66: 0
D67: =SEPT!D67 -> Hobbies, Other Entertainment | E67: =SEPT!E67 -> Variable | G67: =SEPT!G67 -> 0 | H67: 0
D68: =SEPT!D68 -> Work trips food & drink | E68: =SEPT!E68 -> Variable | G68: =SEPT!G68 -> 0 | H68: 0
D69: =SEPT!D69 -> 0 | E69: =SEPT!E69 -> Variable | G69: =SEPT!G69 -> 0 | H69: =G69-F69 -> 0
D70: =SEPT!D70 -> 0 | E70: =SEPT!E70 -> Variable | G70: =SEPT!G70 -> 0 | H70: 0
D71: Subtotal | F71: =SUM(F65:F70) -> 0 | G71: =SUM(G65:G70) -> 0 | H71: =SUM(H65:H70) -> 0
C72: =SEPT!C72 -> Miscellaneous | D72: =SEPT!D72 -> Gifts - Morgan | E72: =SEPT!E72 -> Variable | G72: =SEPT!G72 -> 0 | H72: =G72-F72 -> 0
D73: =SEPT!D73 -> Gifts - Others | E73: =SEPT!E73 -> Variable | G73: =SEPT!G73 -> 0 | H73: =G73-F73 -> 0
D74: =SEPT!D74 -> Donations | E74: =SEPT!E74 -> Variable | G74: =SEPT!G74 -> 65 | H74: =G74-F74 -> 65
D75: =SEPT!D75 -> Tips, Uber, DoorDash, etc | E75: =SEPT!E75 -> Variable | G75: =SEPT!G75 -> 0 | H75: =G75-F75 -> 0
D76: =SEPT!D76 -> Subscriptions (MS Office, Streaming Services, etc.) | E76: =SEPT!E76 -> Variable | G76: =SEPT!G76 -> 0 | H76: =G76-F76 -> 0
D77: =SEPT!D77 -> Cash Expenses | E77: =SEPT!E77 -> Variable | G77: =SEPT!G77 -> 0 | H77: =G77-F77 -> 0
D78: =SEPT!D78 -> Pension Contribution | E78: =SEPT!E78 -> Variable | G78: =SEPT!G78 -> 0 | H78: 0
D79: =SEPT!D79 -> Contributory Insurance | E79: =SEPT!E79 -> Variable | G79: =SEPT!G79 -> 0 | H79: 0
D80: =SEPT!D80 -> Other Miscellaneous | E80: =SEPT!E80 -> Variable | G80: =SEPT!G80 -> 0 | H80: 0
D81: =SEPT!D81 -> 0 | E81: =SEPT!E81 -> Variable | G81: =SEPT!G81 -> 0 | H81: 0
D82: =SEPT!D82 -> 0 | E82: =SEPT!E82 -> Variable | G82: =SEPT!G82 -> 0 | H82: 0
D83: Subtotal | F83: =SUM(F72:F76) -> 0 | G83: =SUM(G72:G76) -> 65 | H83: =SUM(H72:H76) -> 65
C84: TOTAL EXPENSES | F84: =SUM(F83,F71,F64,F50,F42,F33) -> 0 | G84: =SUM(G83,G71,G64,G50,G42,G33) -> 65 | H84: =SUM(H83,H71,H64,H50,H42,H33) -> 65
B86: GOALS | C86: =SEPT!C86 -> Savings | D86: =SEPT!D86 -> Emergency Funds Safety Net (High Interest Online Savings Acct) | E86: =SEPT!E86 -> Fixed | G86: =SEPT!G86 -> 120 | H86: =G86-F86 -> 120
D87: =SEPT!D87 -> Additional Retirement Savings | E87: =SEPT!E87 -> Variable | G87: =SEPT!G87 -> 0 | H87: 0
D88: =SEPT!D88 -> Short-term (Family visits, credit cards, etc.) | E88: =SEPT!E88 -> Variable | G88: =SEPT!G88 -> 0 | H88: 0
D89: =SEPT!D89 -> Vacations | E89: =SEPT!E89 -> Variable | G89: =SEPT!G89 -> 0 | H89: 0
D90: =SEPT!D90 -> Long-term (House, Moving Exp, Furniture, Food Staples, etc.) | E90: =SEPT!E90 -> Variable | G90: =SEPT!G90 -> 0 | H90: 0
D91: =SEPT!D91 -> Long-term Car | E91: =SEPT!E91 -> Variable | G91: =SEPT!G91 -> 0 | H91: =G91-F91 -> 0
D92: =SEPT!D92 -> 0 | E92: =SEPT!E92 -> Variable | G92: =SEPT!G92 -> 0 | H92: 0
D93: =SEPT!D93 -> 0 | E93: =SEPT!E93 -> Variable | G93: =SEPT!G93 -> 0 | H93: 0
C94: TOTAL SAVINGS | F94: =SUM(F86:F88) -> 0 | G94: =SUM(G86:G91) -> 120 | H94: =SUM(H86:H91) -> 120
B96: PROJECTED | C96: MONEY LEFT TO SPEND THIS MONTH | F96: =F19-F84-F94 -> 0 | G96: =G19-G84-G94 -> 6583.666667 | H96: =F96-G96 -> -6583.666667
C97: EXTRA MONEY SAVED SO FAR THIS YEAR | F97: =F96+SEPT!F97 -> 6768.666667 | G97: =G96+SEPT!G97 -> 65836.66667 | H97: =F97-G97 -> -59068

Sheet NOV
B2: MONTHLY BUDGET
C4: CATEGORY | D4: DESCRIPTION | E4: TYPE | F4: ACTUAL | G4: BUDGET | H4: OVER / (UNDER)
B5: INCOME | C5: =OCT!C5 -> Paycheck (Every 2-weeks, After-Tax) | D5: =OCT!D5 -> New Jersey (See Savings Goal tab for details) | E5: =OCT!E5 -> Fixed | G5: =OCT!G5 -> 6768.666667 | H5: =G5-F5 -> 6768.666667
D6: =OCT!D6 -> Resilent Minds | E6: =OCT!E6 -> Variable | G6: =OCT!G6 -> 0 | H6: =G6-F6 -> 0
D7: =OCT!D7 -> 0 | E7: =OCT!E7 -> 0 | G7: =OCT!G7 -> 0 | H7: =G7-F7 -> 0
D8: =OCT!D8 -> 0 | E8: =OCT!E8 -> 0 | G8: =OCT!G8 -> 0 | H8: 0
D9: =OCT!D9 -> 0 | E9: =OCT!E9 -> 0 | G9: =OCT!G9 -> 0 | H9: =G9-F9 -> 0
D10: Subtotal | F10: =SUM(F5:F9) -> 0 | G10: =SUM(G5:G9) -> 6768.666667 | H10: =SUM(H5:H9) -> 6768.666667
C11: =OCT!C11 -> Additional Income | D11: =OCT!D11 -> Bonuses, Tips, Commissions, Miscellaneous Sales, Etc. | E11: =OCT!E11 -> Variable | G11: =OCT!G11 -> 0 | H11: =G11-F11 -> 0
D12: =OCT!D12 -> Savings Interest | E12: =OCT!E12 -> Fixed | G12: =OCT!G12 -> 0 | H12: =G12-F12 -> 0
D13: =OCT!D13 -> Credit Card Cash Back | E13: =OCT!E13 -> Variable | G13: =OCT!G13 -> 0 | H13: =G13-F13 -> 0
D14: =OCT!D14 -> Credit Card Cash Back | E14: =OCT!E14 -> Variable | G14: =OCT!G14 -> 0 | H14: =G14-F14 -> 0
D15: =OCT!D15 -> Credit Card Cash Back | E15: =OCT!E15 -> Variable | G15: =OCT!G15 -> 0 | H15: 0
D16: =OCT!D16 -> 0 | E16: =OCT!E16 -> Variable | G16: =OCT!G16 -> 0 | H16: 0
D17: =OCT!D17 -> 0 | E17: =OCT!E17 -> Variable | G17: =OCT!G17 -> 0 | H17: 0
D18: Subtotal | F18: =SUM(F11:F13) -> 0 | G18: =SUM(G11:G13) -> 0 | H18: =SUM(H11:H13) -> 0
C19: TOTAL INCOME | F19: =SUM(F18,F10) -> 0 | G19: =SUM(G18,G10) -> 6768.666667 | H19: =SUM(H18,H10) -> 6768.666667
B21: EXPENSES | C21: =OCT!C21 -> Home | D21: =OCT!D21 -> Rent/Mortgage | E21: =OCT!E21 -> Fixed | G21: =OCT!G21 -> 0 | H21: =G21-F21 -> 0
D22: =OCT!D22 -> Home Insurance | E22: =OCT!E22 -> Fixed | G22: =OCT!G22 -> 0 | H22: 0
D23: =OCT!D23 -> HOA | E23: =OCT!E23 -> Fixed | G23: =OCT!G23 -> 0 | H23: 0
D24: =OCT!D24 -> Electric | E24: =OCT!E24 -> Variable | G24: =OCT!G24 -> 0 | H24: =G24-F24 -> 0
D25: =OCT!D25 -> Gas | E25: =OCT!E25 -> Fixed | G25: =OCT!G25 -> 0 | H25: 0
D26: =OCT!D26 -> Water & Garbage | E26: =OCT!E26 -> Variable | G26: =OCT!G26 -> 0 | H26: 0
D27: =OCT!D27 -> Internet | E27: =OCT!E27 -> Variable | G27: =OCT!G27 -> 0 | H27: 0
D28: =OCT!D28 -> Personal Property or Other Taxes | E28: =OCT!E28 -> Variable | G28: =OCT!G28 -> 0 | H28: =G28-F28 -> 0
D29: =OCT!D29 -> Phone | E29: =OCT!E29 -> Fixed | G29: =OCT!G29 -> 0 | H29: 0
D30: =OCT!D30 -> Home Furnishings, Repairs | E30: =OCT!E30 -> Variable | G30: =OCT!G30 -> 0 | H30: 0
D31: =OCT!D31 -> 0 | E31: =OCT!E31 -> Variable | G31: =OCT!G31 -> 0 | H31: 0
D32: =OCT!D32 -> 0 | E32: =OCT!E32 -> Variable | G32: =OCT!G32 -> 0 | H32: 0
D33: Subtotal | F33: =SUM(F21:F30) -> 0 | G33: =SUM(G21:G30) -> 0 | H33: =SUM(H21:H30) -> 0
C34: =OCT!C34 -> Transportation | D34: =OCT!D34 -> Car Insurance | E34: =OCT!E34 -> Fixed | G34: =OCT!G34 -> 0 | H34: =G34-F34 -> 0
D35: =OCT!D35 -> Car Oil Changes | E35: =OCT!E35 -> Variable | G35: =OCT!G35 -> 0 | H35: 0
D36: =OCT!D36 -> Car Tires | E36: =OCT!E36 -> Variable | G36: =OCT!G36 -> 0 | H36: 0
D37: =OCT!D37 -> Car Repairs | E37: =OCT!E37 -> Variable | G37: =OCT!G37 -> 0 | H37: 0
D38: =OCT!D38 -> Auto Gas | E38: =OCT!E38 -> Variable | G38: =OCT!G38 -> 0 | H38: =G38-F38 -> 0
D39: =OCT!D39 -> Public Transit / Ride-Share Programs | E39: =OCT!E39 -> Fixed | G39: =OCT!G39 -> 0 | H39: 0
D40: =OCT!D40 -> 0 | E40: =OCT!E40 -> Fixed | G40: =OCT!G40 -> 0 | H40: 0
D41: =OCT!D41 -> 0 | E41: =OCT!E41 -> Fixed | G41: =OCT!G41 -> 0 | H41: 0
D42: Subtotal | F42: =SUM(F34:F40) -> 0 | G42: =SUM(G34:G40) -> 0 | H42: =SUM(H34:H40) -> 0
C43: =OCT!C43 -> Other Debt Payments | D43: =OCT!D43 -> Car Loan | E43: =OCT!E43 -> Fixed | G43: =OCT!G43 -> 0 | H43: =G43-F43 -> 0
D44: =OCT!D44 -> Credit Card #1 | E44: =OCT!E44 -> Variable | G44: =OCT!G44 -> 0 | H44: 0
D45: =OCT!D45 -> Credit Card #2 | E45: =OCT!E45 -> Variable | G45: =OCT!G45 -> 0 | H45: 0
D46: =OCT!D46 -> Credit Card #3 | E46: =OCT!E46 -> Variable | G46: =OCT!G46 -> 0 | H46: =G46-F46 -> 0
D47: =OCT!D47 -> 0 | E47: =OCT!E47 -> Fixed | G47: =OCT!G47 -> 0 | H47: 0
D48: =OCT!D48 -> 0 | E48: =OCT!E48 -> Fixed | G48: =OCT!G48 -> 0 | H48: 0
D49: =OCT!D49 -> 0 | E49: =OCT!E49 -> Fixed | G49: =OCT!G49 -> 0 | H49: 0
D50: Subtotal | F50: =SUM(F43:F47) -> 0 | G50: =SUM(G43:G47) -> 0 | H50: =SUM(H43:H47) -> 0
C51: =OCT!C51 -> Family Care | D51: =OCT!D51 -> Medical Insurance | E51: =OCT!E51 -> Variable | G51: =OCT!G51 -> 0 | H51: =G51-F51 -> 0
D52: =OCT!D52 -> Medical CoPays | E52: =OCT!E52 -> Variable | G52: =OCT!G52 -> 0 | H52: 0
D53: =OCT!D53 -> Medical Out-of-Pocket | E53: =OCT!E53 -> Variable | G53: =OCT!G53 -> 0 | H53: 0
D54: =OCT!D54 -> Dental | E54: =OCT!E54 -> Variable | G54: =OCT!G54 -> 0 | H54: 0
D55: =OCT!D55 -> Groceries | E55: =OCT!E55 -> Variable | G55: =OCT!G55 -> 0 | H55: 0
D56: =OCT!D56 -> Prescriptions | E56: =OCT!E56 -> Variable | G56: =OCT!G56 -> 0 | H56: =G56-F56 -> 0
D57: =OCT!D57 -> Vitamins and Gummies | E57: =OCT!E57 -> Variable | G57: =OCT!G57 -> 0 | H57: 0
D58: =OCT!D58 -> Clothing, shoes, hats, etc | E58: =OCT!E58 -> Variable | G58: =OCT!G58 -> 0 | H58: 0
D59: =OCT!D59 -> Personal Care (Haircuts, Pedicures, Etc.) | E59: =OCT!E59 -> Variable | G59: =OCT!G59 -> 0 | H59: 0
D60: =OCT!D60 -> Gym | E60: =OCT!E60 -> Variable | G60: =OCT!G60 -> 0 | H60: 0
D61: =OCT!D61 -> Pets (Food, Vet, Boarding, Etc.) | E61: =OCT!E61 -> Variable | G61: =OCT!G61 -> 0 | H61: 0
D62: =OCT!D62 -> Alchohol | E62: =OCT!E62 -> Variable | G62: =OCT!G62 -> 0 | H62: 0
D63: =OCT!D63 -> 0 | E63: =OCT!E63 -> Variable | G63: =OCT!G63 -> 0 | H63: 0
D64: Subtotal | F64: =SUM(F51:F59) -> 0 | G64: =SUM(G51:G59) -> 0 | H64: =SUM(H51:H59) -> 0
C65: =OCT!C65 -> Entertainment | D65: =OCT!D65 -> Restaurants, Bars, Etc. | E65: =OCT!E65 -> Variable | G65: =OCT!G65 -> 0 | H65: =G65-F65 -> 0
D66: =OCT!D66 -> Travel (Personal) | E66: =OCT!E66 -> Variable | G66: =OCT!G66 -> 0 | H66: 0
D67: =OCT!D67 -> Hobbies, Other Entertainment | E67: =OCT!E67 -> Variable | G67: =OCT!G67 -> 0 | H67: 0
D68: =OCT!D68 -> Work trips food & drink | E68: =OCT!E68 -> Variable | G68: =OCT!G68 -> 0 | H68: 0
D69: =OCT!D69 -> 0 | E69: =OCT!E69 -> Variable | G69: =OCT!G69 -> 0 | H69: =G69-F69 -> 0
D70: =OCT!D70 -> 0 | E70: =OCT!E70 -> Variable | G70: =OCT!G70 -> 0 | H70: 0
D71: Subtotal | F71: =SUM(F65:F70) -> 0 | G71: =SUM(G65:G70) -> 0 | H71: =SUM(H65:H70) -> 0
C72: =OCT!C72 -> Miscellaneous | D72: =OCT!D72 -> Gifts - Morgan | E72: =OCT!E72 -> Variable | G72: =OCT!G72 -> 0 | H72: =G72-F72 -> 0
D73: =OCT!D73 -> Gifts - Others | E73: =OCT!E73 -> Variable | G73: =OCT!G73 -> 0 | H73: 0
D74: =OCT!D74 -> Donations | E74: =OCT!E74 -> Variable | G74: =OCT!G74 -> 65 | H74: 65
D75: =OCT!D75 -> Tips, Uber, DoorDash, etc | E75: =OCT!E75 -> Variable | G75: =OCT!G75 -> 0 | H75: 0
D76: =OCT!D76 -> Subscriptions (MS Office, Streaming Services, etc.) | E76: =OCT!E76 -> Variable | G76: =OCT!G76 -> 0 | H76: 0
D77: =OCT!D77 -> Cash Expenses | E77: =OCT!E77 -> Variable | G77: =OCT!G77 -> 0 | H77: 0
D78: =OCT!D78 -> Pension Contribution | E78: =OCT!E78 -> Variable | G78: =OCT!G78 -> 0 | H78: 0
D79: =OCT!D79 -> Contributory Insurance | E79: =OCT!E79 -> Variable | G79: =OCT!G79 -> 0 | H79: 0
D80: =OCT!D80 -> Other Miscellaneous | E80: =OCT!E80 -> Variable | G80: =OCT!G80 -> 0 | H80: 0
D81: =OCT!D81 -> 0 | E81: =OCT!E81 -> Variable | G81: =OCT!G81 -> 0 | H81: 0
D82: =OCT!D82 -> 0 | E82: =OCT!E82 -> Variable | G82: =OCT!G82 -> 0 | H82: 0
D83: Subtotal | F83: =SUM(F72:F76) -> 0 | G83: =SUM(G72:G76) -> 65 | H83: =SUM(H72:H76) -> 65
C84: TOTAL EXPENSES | F84: =SUM(F83,F71,F64,F50,F42,F33) -> 0 | G84: =SUM(G83,G71,G64,G50,G42,G33) -> 65 | H84: =SUM(H83,H71,H64,H50,H42,H33) -> 65
B86: GOALS | C86: =OCT!C86 -> Savings | D86: =OCT!D86 -> Emergency Funds Safety Net (High Interest Online Savings Acct) | E86: =OCT!E86 -> Fixed | G86: =OCT!G86 -> 120 | H86: =G86-F86 -> 120
D87: =OCT!D87 -> Additional Retirement Savings | E87: =OCT!E87 -> Variable | G87: =OCT!G87 -> 0 | H87: 0
D88: =OCT!D88 -> Short-term (Family visits, credit cards, etc.) | E88: =OCT!E88 -> Variable | G88: =OCT!G88 -> 0 | H88: 0
D89: =OCT!D89 -> Vacations | E89: =OCT!E89 -> Variable | G89: =OCT!G89 -> 0 | H89: 0
D90: =OCT!D90 -> Long-term (House, Moving Exp, Furniture, Food Staples, etc.) | E90: =OCT!E90 -> Variable | G90: =OCT!G90 -> 0 | H90: =G90-F90 -> 0
D91: =OCT!D91 -> Long-term Car | E91: =OCT!E91 -> Variable | G91: =OCT!G91 -> 0 | H91: 0
D92: =OCT!D92 -> 0 | E92: =OCT!E92 -> Variable | G92: =OCT!G92 -> 0 | H92: 0
D93: =OCT!D93 -> 0 | E93: =OCT!E93 -> Variable | G93: =OCT!G93 -> 0 | H93: 0
C94: TOTAL SAVINGS | F94: =SUM(F86:F88) -> 0 | G94: =SUM(G86:G91) -> 120 | H94: =SUM(H86:H91) -> 120
B96: PROJECTED | C96: MONEY LEFT TO SPEND THIS MONTH | F96: =F19-F84-F94 -> 0 | G96: =G19-G84-G94 -> 6583.666667 | H96: =F96-G96 -> -6583.666667
C97: EXTRA MONEY SAVED SO FAR THIS YEAR | F97: =F96+OCT!F97 -> 6768.666667 | G97: =G96+OCT!G97 -> 72420.33333 | H97: =F97-G97 -> -65651.66667

Sheet DEC
B2: MONTHLY BUDGET
C4: CATEGORY | D4: DESCRIPTION | E4: TYPE | F4: ACTUAL | G4: BUDGET | H4: OVER / (UNDER)
B5: INCOME | C5: =NOV!C5 -> Paycheck (Every 2-weeks, After-Tax) | D5: =NOV!D5 -> New Jersey (See Savings Goal tab for details) | E5: =NOV!E5 -> Fixed | G5: =NOV!G5 -> 6768.666667 | H5: =G5-F5 -> 6768.666667
D6: =NOV!D6 -> Resilent Minds | E6: =NOV!E6 -> Variable | G6: =NOV!G6 -> 0 | H6: =G6-F6 -> 0
D7: =NOV!D7 -> 0 | E7: =NOV!E7 -> 0 | G7: =NOV!G7 -> 0 | H7: =G7-F7 -> 0
D8: =NOV!D8 -> 0 | E8: =NOV!E8 -> 0 | G8: =NOV!G8 -> 0 | H8: 0
D9: =NOV!D9 -> 0 | E9: =NOV!E9 -> 0 | G9: =NOV!G9 -> 0 | H9: =G9-F9 -> 0
D10: Subtotal | F10: =SUM(F5:F9) -> 0 | G10: =SUM(G5:G9) -> 6768.666667 | H10: =SUM(H5:H9) -> 6768.666667
C11: =NOV!C11 -> Additional Income | D11: =NOV!D11 -> Bonuses, Tips, Commissions, Miscellaneous Sales, Etc. | E11: =NOV!E11 -> Variable | G11: =NOV!G11 -> 0 | H11: =G11-F11 -> 0
D12: =NOV!D12 -> Savings Interest | E12: =NOV!E12 -> Fixed | G12: =NOV!G12 -> 0 | H12: =G12-F12 -> 0
D13: =NOV!D13 -> Credit Card Cash Back | E13: =NOV!E13 -> Variable | G13: =NOV!G13 -> 0 | H13: =G13-F13 -> 0
D14: =NOV!D14 -> Credit Card Cash Back | E14: =NOV!E14 -> Variable | G14: =NOV!G14 -> 0 | H14: =G14-F14 -> 0
D15: =NOV!D15 -> Credit Card Cash Back | E15: =NOV!E15 -> Variable | G15: =NOV!G15 -> 0 | H15: 0
D16: =NOV!D16 -> 0 | E16: =NOV!E16 -> Variable | G16: =NOV!G16 -> 0 | H16: 0
D17: =NOV!D17 -> 0 | E17: =NOV!E17 -> Variable | G17: =NOV!G17 -> 0 | H17: 0
D18: Subtotal | F18: =SUM(F11:F13) -> 0 | G18: =SUM(G11:G13) -> 0 | H18: =SUM(H11:H13) -> 0
C19: TOTAL INCOME | F19: =SUM(F18,F10) -> 0 | G19: =SUM(G18,G10) -> 6768.666667 | H19: =SUM(H18,H10) -> 6768.666667
B21: EXPENSES | C21: =NOV!C21 -> Home | D21: =NOV!D21 -> Rent/Mortgage | E21: =NOV!E21 -> Fixed | G21: =NOV!G21 -> 0 | H21: =G21-F21 -> 0
D22: =NOV!D22 -> Home Insurance | E22: =NOV!E22 -> Fixed | G22: =NOV!G22 -> 0 | H22: 0
D23: =NOV!D23 -> HOA | E23: =NOV!E23 -> Fixed | G23: =NOV!G23 -> 0 | H23: 0
D24: =NOV!D24 -> Electric | E24: =NOV!E24 -> Variable | G24: =NOV!G24 -> 0 | H24: =G24-F24 -> 0
D25: =NOV!D25 -> Gas | E25: =NOV!E25 -> Fixed | G25: =NOV!G25 -> 0 | H25: 0
D26: =NOV!D26 -> Water & Garbage | E26: =NOV!E26 -> Variable | G26: =NOV!G26 -> 0 | H26: 0
D27: =NOV!D27 -> Internet | E27: =NOV!E27 -> Variable | G27: =NOV!G27 -> 0 | H27: 0
D28: =NOV!D28 -> Personal Property or Other Taxes | E28: =NOV!E28 -> Variable | G28: =NOV!G28 -> 0 | H28: 0
D29: =NOV!D29 -> Phone | E29: =NOV!E29 -> Fixed | G29: =NOV!G29 -> 0 | H29: =G29-F29 -> 0
D30: =NOV!D30 -> Home Furnishings, Repairs | E30: =NOV!E30 -> Variable | G30: =NOV!G30 -> 0 | H30: 0
D31: =NOV!D31 -> 0 | E31: =NOV!E31 -> Variable | G31: =NOV!G31 -> 0 | H31: 0
D32: =NOV!D32 -> 0 | E32: =NOV!E32 -> Variable | G32: =NOV!G32 -> 0 | H32: 0
D33: Subtotal | F33: =SUM(F21:F30) -> 0 | G33: =SUM(G21:G30) -> 0 | H33: =SUM(H21:H30) -> 0
C34: =NOV!C34 -> Transportation | D34: =NOV!D34 -> Car Insurance | E34: =NOV!E34 -> Fixed | G34: =NOV!G34 -> 0 | H34: =G34-F34 -> 0
D35: =NOV!D35 -> Car Oil Changes | E35: =NOV!E35 -> Variable | G35: =NOV!G35 -> 0 | H35: 0
D36: =NOV!D36 -> Car Tires | E36: =NOV!E36 -> Variable | G36: =NOV!G36 -> 0 | H36: 0
D37: =NOV!D37 -> Car Repairs | E37: =NOV!E37 -> Variable | G37: =NOV!G37 -> 0 | H37: 0
D38: =NOV!D38 -> Auto Gas | E38: =NOV!E38 -> Variable | G38: =NOV!G38 -> 0 | H38: =G38-F38 -> 0
D39: =NOV!D39 -> Public Transit / Ride-Share Programs | E39: =NOV!E39 -> Fixed | G39: =NOV!G39 -> 0 | H39: 0
D40: =NOV!D40 -> 0 | E40: =NOV!E40 -> Fixed | G40: =NOV!G40 -> 0 | H40: 0
D41: =NOV!D41 -> 0 | E41: =NOV!E41 -> Fixed | G41: =NOV!G41 -> 0 | H41: 0
D42: Subtotal | F42: =SUM(F34:F40) -> 0 | G42: =SUM(G34:G40) -> 0 | H42: =SUM(H34:H40) -> 0
C43: =NOV!C43 -> Other Debt Payments | D43: =NOV!D43 -> Car Loan | E43: =NOV!E43 -> Fixed | G43: =NOV!G43 -> 0 | H43: =G43-F43 -> 0
D44: =NOV!D44 -> Credit Card #1 | E44: =NOV!E44 -> Variable | G44: =NOV!G44 -> 0 | H44: 0
D45: =NOV!D45 -> Credit Card #2 | E45: =NOV!E45 -> Variable | G45: =NOV!G45 -> 0 | H45: 0
D46: =NOV!D46 -> Credit Card #3 | E46: =NOV!E46 -> Variable | G46: =NOV!G46 -> 0 | H46: 0
D47: =NOV!D47 -> 0 | E47: =NOV!E47 -> Fixed | G47: =NOV!G47 -> 0 | H47: =G47-F47 -> 0
D48: =NOV!D48 -> 0 | E48: =NOV!E48 -> Fixed | G48: =NOV!G48 -> 0 | H48: 0
D49: =NOV!D49 -> 0 | E49: =NOV!E49 -> Fixed | G49: =NOV!G49 -> 0 | H49: 0
D50: Subtotal | F50: =SUM(F43:F47) -> 0 | G50: =SUM(G43:G47) -> 0 | H50: =SUM(H43:H47) -> 0
C51: =NOV!C51 -> Family Care | D51: =NOV!D51 -> Medical Insurance | E51: =NOV!E51 -> Variable | G51: =NOV!G51 -> 0 | H51: =G51-F51 -> 0
D52: =NOV!D52 -> Medical CoPays | E52: =NOV!E52 -> Variable | G52: =NOV!G52 -> 0 | H52: 0
D53: =NOV!D53 -> Medical Out-of-Pocket | E53: =NOV!E53 -> Variable | G53: =NOV!G53 -> 0 | H53: 0
D54: =NOV!D54 -> Dental | E54: =NOV!E54 -> Variable | G54: =NOV!G54 -> 0 | H54: 0
D55: =NOV!D55 -> Groceries | E55: =NOV!E55 -> Variable | G55: =NOV!G55 -> 0 | H55: =G55-F55 -> 0
D56: =NOV!D56 -> Prescriptions | E56: =NOV!E56 -> Variable | G56: =NOV!G56 -> 0 | H56: 0
D57: =NOV!D57 -> Vitamins and Gummies | E57: =NOV!E57 -> Variable | G57: =NOV!G57 -> 0 | H57: 0
D58: =NOV!D58 -> Clothing, shoes, hats, etc | E58: =NOV!E58 -> Variable | G58: =NOV!G58 -> 0 | H58: 0
D59: =NOV!D59 -> Personal Care (Haircuts, Pedicures, Etc.) | E59: =NOV!E59 -> Variable | G59: =NOV!G59 -> 0 | H59: 0
D60: =NOV!D60 -> Gym | E60: =NOV!E60 -> Variable | G60: =NOV!G60 -> 0 | H60: 0
D61: =NOV!D61 -> Pets (Food, Vet, Boarding, Etc.) | E61: =NOV!E61 -> Variable | G61: =NOV!G61 -> 0 | H61: 0
D62: =NOV!D62 -> Alchohol | E62: =NOV!E62 -> Variable | G62: =NOV!G62 -> 0 | H62: 0
D63: =NOV!D63 -> 0 | E63: =NOV!E63 -> Variable | G63: =NOV!G63 -> 0 | H63: 0
D64: Subtotal | F64: =SUM(F51:F59) -> 0 | G64: =SUM(G51:G59) -> 0 | H64: =SUM(H51:H59) -> 0
C65: =NOV!C65 -> Entertainment | D65: =NOV!D65 -> Restaurants, Bars, Etc. | E65: =NOV!E65 -> Variable | G65: =NOV!G65 -> 0 | H65: =G65-F65 -> 0
D66: =NOV!D66 -> Travel (Personal) | E66: =NOV!E66 -> Variable | G66: =NOV!G66 -> 0 | H66: 0
D67: =NOV!D67 -> Hobbies, Other Entertainment | E67: =NOV!E67 -> Variable | G67: =NOV!G67 -> 0 | H67: 0
D68: =NOV!D68 -> Work trips food & drink | E68: =NOV!E68 -> Variable | G68: =NOV!G68 -> 0 | H68: =G68-F68 -> 0
D69: =NOV!D69 -> 0 | E69: =NOV!E69 -> Variable | G69: =NOV!G69 -> 0 | H69: 0
D70: =NOV!D70 -> 0 | E70: =NOV!E70 -> Variable | G70: =NOV!G70 -> 0 | H70: 0
D71: Subtotal | F71: =SUM(F65:F70) -> 0 | G71: =SUM(G65:G70) -> 0 | H71: =SUM(H65:H70) -> 0
C72: =NOV!C72 -> Miscellaneous | D72: =NOV!D72 -> Gifts - Morgan | E72: =NOV!E72 -> Variable | G72: =NOV!G72 -> 0 | H72: =G72-F72 -> 0
D73: =NOV!D73 -> Gifts - Others | E73: =NOV!E73 -> Variable | G73: =NOV!G73 -> 0 | H73: 0
D74: =NOV!D74 -> Donations | E74: =NOV!E74 -> Variable | G74: =NOV!G74 -> 65 | H74: 65
D75: =NOV!D75 -> Tips, Uber, DoorDash, etc | E75: =NOV!E75 -> Variable | G75: =NOV!G75 -> 0 | H75: 0
D76: =NOV!D76 -> Subscriptions (MS Office, Streaming Services, etc.) | E76: =NOV!E76 -> Variable | G76: =NOV!G76 -> 0 | H76: 0
D77: =NOV!D77 -> Cash Expenses | E77: =NOV!E77 -> Variable | G77: =NOV!G77 -> 0 | H77: 0
D78: =NOV!D78 -> Pension Contribution | E78: =NOV!E78 -> Variable | G78: =NOV!G78 -> 0 | H78: 0
D79: =NOV!D79 -> Contributory Insurance | E79: =NOV!E79 -> Variable | G79: =NOV!G79 -> 0 | H79: 0
D80: =NOV!D80 -> Other Miscellaneous | E80: =NOV!E80 -> Variable | G80: =NOV!G80 -> 0 | H80: 0
D81: =NOV!D81 -> 0 | E81: =NOV!E81 -> Variable | G81: =NOV!G81 -> 0 | H81: 0
D82: =NOV!D82 -> 0 | E82: =NOV!E82 -> Variable | G82: =NOV!G82 -> 0 | H82: 0
D83: Subtotal | F83: =SUM(F72:F76) -> 0 | G83: =SUM(G72:G76) -> 65 | H83: =SUM(H72:H76) -> 65
C84: TOTAL EXPENSES | F84: =SUM(F83,F71,F64,F50,F42,F33) -> 0 | G84: =SUM(G83,G71,G64,G50,G42,G33) -> 65 | H84: =SUM(H83,H71,H64,H50,H42,H33) -> 65
B86: GOALS | C86: =NOV!C86 -> Savings | D86: =NOV!D86 -> Emergency Funds Safety Net (High Interest Online Savings Acct) | E86: =NOV!E86 -> Fixed | G86: =NOV!G86 -> 120 | H86: =G86-F86 -> 120
D87: =NOV!D87 -> Additional Retirement Savings | E87: =NOV!E87 -> Variable | G87: =NOV!G87 -> 0 | H87: 0
D88: =NOV!D88 -> Short-term (Family visits, credit cards, etc.) | E88: =NOV!E88 -> Variable | G88: =NOV!G88 -> 0 | H88: 0
D89: =NOV!D89 -> Vacations | E89: =NOV!E89 -> Variable | G89: =NOV!G89 -> 0 | H89: 0
D90: =NOV!D90 -> Long-term (House, Moving Exp, Furniture, Food Staples, etc.) | E90: =NOV!E90 -> Variable | G90: =NOV!G90 -> 0 | H90: =G90-F90 -> 0
D91: =NOV!D91 -> Long-term Car | E91: =NOV!E91 -> Variable | G91: =NOV!G91 -> 0 | H91: 0
D92: =NOV!D92 -> 0 | E92: =NOV!E92 -> Variable | G92: =NOV!G92 -> 0 | H92: 0
D93: =NOV!D93 -> 0 | E93: =NOV!E93 -> Variable | G93: =NOV!G93 -> 0 | H93: 0
C94: TOTAL SAVINGS | F94: =SUM(F86:F88) -> 0 | G94: =SUM(G86:G91) -> 120 | H94: =SUM(H86:H91) -> 120
B96: PROJECTED | C96: MONEY LEFT TO SPEND THIS MONTH | F96: =F19-F84-F94 -> 0 | G96: =G19-G84-G94 -> 6583.666667 | H96: =F96-G96 -> -6583.666667
C97: EXTRA MONEY SAVED SO FAR THIS YEAR | F97: =F96+NOV!F97 -> 6768.666667 | G97: =G96+NOV!G97 -> 79004 | H97: =F97-G97 -> -72235.33333
